Workbook

Sheet C&S
B1: Januar | C1: Februar | D1: März | E1: April | F1: Mai | G1: Juni | H1: Juli | I1: August | J1: September | K1: Oktober | L1: November | M1: Dezember | N1: Gesamt | P1: 2018 | Q1: Differenz | R1: in %
A2: Saison | B2: - | C2: - | D2: - | E2: - | F2: - | G2: - | H2: - | I2: - | J2: - | K2: - | L2: - | M2: - | N2: - | P2: - | Q2: - | R2: -
A3: NW + GW Stk. | B3: =NW!B3+GW!B3 -> 61.392 | C3: =NW!C3+GW!C3 -> 56.342 | D3: =NW!D3+GW!D3 -> 84.248 | E3: =NW!E3+GW!E3 -> 60.11 | F3: =NW!F3+GW!F3 -> 76.918 | G3: =NW!G3+GW!G3 -> 74.578 | H3: =NW!H3+GW!H3 -> 62.018 | I3: =NW!I3+GW!I3 -> 66.01 | J3: =NW!J3+GW!J3 -> 51.35 | K3: =NW!K3+GW!K3 -> 67.464 | L3: =NW!L3+GW!L3 -> 61.58 | M3: =NW!M3+GW!M3 -> 57.99 | N3: =SUM(B3:M3) -> 780 | P3: =400+385 -> 785 | Q3: =N3-P3 -> -5 | R3: =Q3/P3 -> -0.006369426752
A4: Verk. Stunden | B4: =Aftersales!B3 -> 1296.388876 | C4: =Aftersales!C3 -> 1144.651038 | D4: =Aftersales!D3 -> 1574.790416 | E4: =Aftersales!E3 -> 1677.772853 | F4: =Aftersales!F3 -> 1404.654959 | G4: =Aftersales!G3 -> 1540.170731 | H4: =Aftersales!H3 -> 1367.692482 | I4: =Aftersales!I3 -> 1422.664784 | J4: =Aftersales!J3 -> 1298.384751 | K4: =Aftersales!K3 -> 1842.620441 | L4: =Aftersales!L3 -> 1797.35676 | M4: =Aftersales!M3 -> 1532.851909 | N4: =SUM(B4:M4) -> 17900 | P4: 16735 | Q4: =N4-P4 -> 1165 | R4: =Q4/P4 -> 0.06961458022
A5: Umsatzerlöse | B5: =Sales!B4+Aftersales!B4 -> 1024669.668 | C5: =Sales!C4+Aftersales!C4 -> 930958.6829 | D5: =Sales!D4+Aftersales!D4 -> 1368608.816 | E5: =Sales!E4+Aftersales!E4 -> 1088558.589 | F5: =Sales!F4+Aftersales!F4 -> 1238813.401 | G5: =Sales!G4+Aftersales!G4 -> 1235124.221 | H5: =Sales!H4+Aftersales!H4 -> 1048880.391 | I5: =Sales!I4+Aftersales!I4 -> 1108838.64 | J5: =Sales!J4+Aftersales!J4 -> 898179.7409 | K5: =Sales!K4+Aftersales!K4 -> 1208589.182 | L5: =Sales!L4+Aftersales!L4 -> 1125523.505 | M5: =Sales!M4+Aftersales!M4 -> 1028567.163 | N5: =SUM(B5:M5) -> 13305312 | P5: 13138454 | Q5: 166858 | R5: 0.01269997216
A6: Einsatzwerte | B6: =Sales!B6+Aftersales!B6 -> 819017.7325 | C6: =Sales!C6+Aftersales!C6 -> 747318.474 | D6: =Sales!D6+Aftersales!D6 -> 1109064.572 | E6: =Sales!E6+Aftersales!E6 -> 841059.8673 | F6: =Sales!F6+Aftersales!F6 -> 1005891 | G6: =Sales!G6+Aftersales!G6 -> 989404.832 | H6: =Sales!H6+Aftersales!H6 -> 834441.6032 | I6: =Sales!I6+Aftersales!I6 -> 884383.0907 | J6: =Sales!J6+Aftersales!J6 -> 702267.4731 | K6: =Sales!K6+Aftersales!K6 -> 935746.0301 | L6: =Sales!L6+Aftersales!L6 -> 863574.0309 | M6: =Sales!M6+Aftersales!M6 -> 799774.0938 | N6: =SUM(B6:M6) -> 10531942.8 | P6: 10439139 | Q6: 92803.8 | R6: 0.008889986042
A7: Bruttoertrag | B7: =Sales!B7+Aftersales!B7 -> 205651.9359 | C7: =Sales!C7+Aftersales!C7 -> 183640.209 | D7: =Sales!D7+Aftersales!D7 -> 259544.2437 | E7: =Sales!E7+Aftersales!E7 -> 247498.7217 | F7: =Sales!F7+Aftersales!F7 -> 232922.4009 | G7: =Sales!G7+Aftersales!G7 -> 245719.3889 | H7: =Sales!H7+Aftersales!H7 -> 214438.7874 | I7: =Sales!I7+Aftersales!I7 -> 224455.5494 | J7: =Sales!J7+Aftersales!J7 -> 195912.2678 | K7: =Sales!K7+Aftersales!K7 -> 272843.1519 | L7: =Sales!L7+Aftersales!L7 -> 261949.4737 | M7: =Sales!M7+Aftersales!M7 -> 228793.0696 | N7: =SUM(B7:M7) -> 2773369.2 | P7: 2699315 | Q7: 74054.2 | R7: 0.0274344417
N8: =N7/N5 -> 0.2084407491 | P8: =P7/P5 -> 0.2054514938
A9: Variable Kosten | B9: =Sales!B10+Aftersales!B10 -> 23571.736 | C9: =Sales!C10+Aftersales!C10 -> 21502.42577 | D9: =Sales!D10+Aftersales!D10 -> 31892.16735 | E9: =Sales!E10+Aftersales!E10 -> 24258.39119 | F9: =Sales!F10+Aftersales!F10 -> 28921.75103 | G9: =Sales!G10+Aftersales!G10 -> 28471.65135 | H9: =Sales!H10+Aftersales!H10 -> 24022.71636 | I9: =Sales!I10+Aftersales!I10 -> 25456.42474 | J9: =Sales!J10+Aftersales!J10 -> 20239.78532 | K9: =Sales!K10+Aftersales!K10 -> 26985.76463 | L9: =Sales!L10+Aftersales!L10 -> 24919.02411 | M9: =Sales!M10+Aftersales!M10 -> 23058.16215 | N9: =SUM(B9:M9) -> 303300 | P9: 337201 | Q9: -33901 | R9: -0.1005364753
A10: Fixum/Prov./Soz. | B10: =Sales!B11+Aftersales!B11 -> 16460.7975 | C10: =Sales!C11+Aftersales!C11 -> 15102.1285 | D10: =Sales!D11+Aftersales!D11 -> 22679.321 | E10: =Sales!E11+Aftersales!E11 -> 16157.7098 | F10: =Sales!F11+Aftersales!F11 -> 20620.4149 | G10: =Sales!G11+Aftersales!G11 -> 19941.0804 | H10: =Sales!H11+Aftersales!H11 -> 16669.8235 | I10: =Sales!I11+Aftersales!I11 -> 17725.4048 | J10: =Sales!J11+Aftersales!J11 -> 13712.1056 | K10: =Sales!K11+Aftersales!K11 -> 18028.4925 | L10: =Sales!L11+Aftersales!L11 -> 16429.4436 | M10: =Sales!M11+Aftersales!M11 -> 15499.2779 | N10: 209026 | P10: 241814 | Q10: -32788 | R10: -0.1355918185
A11: Provisionen | B11: =Sales!B12+Aftersales!B12 -> 853.02 | C11: =Sales!C12+Aftersales!C12 -> 782.612 | D11: =Sales!D12+Aftersales!D12 -> 1175.272 | E11: =Sales!E12+Aftersales!E12 -> 837.3136 | F11: =Sales!F12+Aftersales!F12 -> 1068.5768 | G11: =Sales!G12+Aftersales!G12 -> 1033.3728 | H11: =Sales!H12+Aftersales!H12 -> 863.852 | I11: =Sales!I12+Aftersales!I12 -> 918.5536 | J11: =Sales!J12+Aftersales!J12 -> 710.5792 | K11: =Sales!K12+Aftersales!K12 -> 934.26 | L11: =Sales!L12+Aftersales!L12 -> 851.3952 | M11: =Sales!M12+Aftersales!M12 -> 803.1928 | N11: 10832 | P11: 10729 | Q11: 103 | R11: 0.009600149129
A12: Fertigmachen | B12: =Sales!B13+Aftersales!B13 -> 2101.995 | C12: =Sales!C13+Aftersales!C13 -> 1928.497 | D12: =Sales!D13+Aftersales!D13 -> 2896.082 | E12: =Sales!E13+Aftersales!E13 -> 2063.2916 | F12: =Sales!F13+Aftersales!F13 -> 2633.1658 | G12: =Sales!G13+Aftersales!G13 -> 2546.4168 | H12: =Sales!H13+Aftersales!H13 -> 2128.687 | I12: =Sales!I13+Aftersales!I13 -> 2263.4816 | J12: =Sales!J13+Aftersales!J13 -> 1750.9952 | K12: =Sales!K13+Aftersales!K13 -> 2302.185 | L12: =Sales!L13+Aftersales!L13 -> 2097.9912 | M12: =Sales!M13+Aftersales!M13 -> 1979.2118 | N12: 26692 | P12: 26230 | Q12: 462 | R12: 0.01761341975
A13: Kulanz | B13: =Sales!B14+Aftersales!B14 -> 4155.923497 | C13: =Sales!C14+Aftersales!C14 -> 3689.188275 | D13: =Sales!D14+Aftersales!D14 -> 5141.492353 | E13: =Sales!E14+Aftersales!E14 -> 5200.076185 | F13: =Sales!F14+Aftersales!F14 -> 4599.593533 | G13: =Sales!G14+Aftersales!G14 -> 4950.78135 | H13: =Sales!H14+Aftersales!H14 -> 4360.353861 | I13: =Sales!I14+Aftersales!I14 -> 4548.984739 | J13: =Sales!J14+Aftersales!J14 -> 4066.105318 | K13: =Sales!K14+Aftersales!K14 -> 5720.827126 | L13: =Sales!L14+Aftersales!L14 -> 5540.194113 | M13: =Sales!M14+Aftersales!M14 -> 4776.479649 | N13: 56750 | P13: 58427 | Q13: -1677 | R13: =Q13/P13 -> -0.02870248344
A14: sonst. variable Kosten | B14: =Sales!B15+Aftersales!B15 -> 0 | C14: =Sales!C15+Aftersales!C15 -> 0 | D14: =Sales!D15+Aftersales!D15 -> 0 | E14: =Sales!E15+Aftersales!E15 -> 0 | F14: =Sales!F15+Aftersales!F15 -> 0 | G14: =Sales!G15+Aftersales!G15 -> 0 | H14: =Sales!H15+Aftersales!H15 -> 0 | I14: =Sales!I15+Aftersales!I15 -> 0 | J14: =Sales!J15+Aftersales!J15 -> 0 | K14: =Sales!K15+Aftersales!K15 -> 0 | L14: =Sales!L15+Aftersales!L15 -> 0 | M14: =Sales!M15+Aftersales!M15 -> 0 | N14: 0 | P14: 0 | Q14: 0 | R14: =Q14/P14 -> 
A15: Bruttoertrag II | B15: =Sales!B16+Aftersales!B16 -> 182080.1999 | C15: =Sales!C16+Aftersales!C16 -> 162137.7832 | D15: =Sales!D16+Aftersales!D16 -> 227652.0763 | E15: =Sales!E16+Aftersales!E16 -> 223240.3305 | F15: =Sales!F16+Aftersales!F16 -> 204000.6499 | G15: =Sales!G16+Aftersales!G16 -> 217247.7375 | H15: =Sales!H16+Aftersales!H16 -> 190416.0711 | I15: =Sales!I16+Aftersales!I16 -> 198999.1247 | J15: =Sales!J16+Aftersales!J16 -> 175672.4825 | K15: =Sales!K16+Aftersales!K16 -> 245857.3873 | L15: =Sales!L16+Aftersales!L16 -> 237030.4496 | M15: =Sales!M16+Aftersales!M16 -> 205734.9075 | N15: 2470069.2 | P15: 2362114 | Q15: 107955.2 | R15: 0.04570278996
A16: Direkte Kosten | B16: =Sales!B17+Aftersales!B17 -> 111036.6667 | C16: =Sales!C17+Aftersales!C17 -> 111036.6667 | D16: =Sales!D17+Aftersales!D17 -> 111036.6667 | E16: =Sales!E17+Aftersales!E17 -> 111036.6667 | F16: =Sales!F17+Aftersales!F17 -> 111036.6667 | G16: =Sales!G17+Aftersales!G17 -> 111036.6667 | H16: =Sales!H17+Aftersales!H17 -> 111036.6667 | I16: =Sales!I17+Aftersales!I17 -> 111036.6667 | J16: =Sales!J17+Aftersales!J17 -> 111036.6667 | K16: =Sales!K17+Aftersales!K17 -> 111036.6667 | L16: =Sales!L17+Aftersales!L17 -> 111036.6667 | M16: =Sales!M17+Aftersales!M17 -> 111036.6667 | N16: 1332440 | P16: 1397381 | Q16: -64941 | R16: -0.04647336696
A17: Personalkosten | B17: =Sales!B18+Aftersales!B18 -> 72724.79167 | C17: =Sales!C18+Aftersales!C18 -> 72724.79167 | D17: =Sales!D18+Aftersales!D18 -> 72724.79167 | E17: =Sales!E18+Aftersales!E18 -> 72724.79167 | F17: =Sales!F18+Aftersales!F18 -> 72724.79167 | G17: =Sales!G18+Aftersales!G18 -> 72724.79167 | H17: =Sales!H18+Aftersales!H18 -> 72724.79167 | I17: =Sales!I18+Aftersales!I18 -> 72724.79167 | J17: =Sales!J18+Aftersales!J18 -> 72724.79167 | K17: =Sales!K18+Aftersales!K18 -> 72724.79167 | L17: =Sales!L18+Aftersales!L18 -> 72724.79167 | M17: =Sales!M18+Aftersales!M18 -> 72724.79167 | N17: 872697.5 | P17: 923873.11 | Q17: -51175.61 | R17: -0.05539246618
A18: Werbekosten | B18: =Sales!B19+Aftersales!B19 -> 3863.375 | C18: =Sales!C19+Aftersales!C19 -> 3863.375 | D18: =Sales!D19+Aftersales!D19 -> 3863.375 | E18: =Sales!E19+Aftersales!E19 -> 3863.375 | F18: =Sales!F19+Aftersales!F19 -> 3863.375 | G18: =Sales!G19+Aftersales!G19 -> 3863.375 | H18: =Sales!H19+Aftersales!H19 -> 3863.375 | I18: =Sales!I19+Aftersales!I19 -> 3863.375 | J18: =Sales!J19+Aftersales!J19 -> 3863.375 | K18: =Sales!K19+Aftersales!K19 -> 3863.375 | L18: =Sales!L19+Aftersales!L19 -> 3863.375 | M18: =Sales!M19+Aftersales!M19 -> 3863.375 | N18: 46360.5 | P18: 45791 | Q18: 569.5 | R18: 0.01243694176
A19: Fahrzeugkosten | B19: =Sales!B20+Aftersales!B20 -> 6389.583333 | C19: =Sales!C20+Aftersales!C20 -> 6389.583333 | D19: =Sales!D20+Aftersales!D20 -> 6389.583333 | E19: =Sales!E20+Aftersales!E20 -> 6389.583333 | F19: =Sales!F20+Aftersales!F20 -> 6389.583333 | G19: =Sales!G20+Aftersales!G20 -> 6389.583333 | H19: =Sales!H20+Aftersales!H20 -> 6389.583333 | I19: =Sales!I20+Aftersales!I20 -> 6389.583333 | J19: =Sales!J20+Aftersales!J20 -> 6389.583333 | K19: =Sales!K20+Aftersales!K20 -> 6389.583333 | L19: =Sales!L20+Aftersales!L20 -> 6389.583333 | M19: =Sales!M20+Aftersales!M20 -> 6389.583333 | N19: 76675 | P19: 83278 | Q19: -6603 | R19: -0.07928864766
A20: Abschreibungen | B20: =Sales!B21+Aftersales!B21 -> 13887.25 | C20: =Sales!C21+Aftersales!C21 -> 13887.25 | D20: =Sales!D21+Aftersales!D21 -> 13887.25 | E20: =Sales!E21+Aftersales!E21 -> 13887.25 | F20: =Sales!F21+Aftersales!F21 -> 13887.25 | G20: =Sales!G21+Aftersales!G21 -> 13887.25 | H20: =Sales!H21+Aftersales!H21 -> 13887.25 | I20: =Sales!I21+Aftersales!I21 -> 13887.25 | J20: =Sales!J21+Aftersales!J21 -> 13887.25 | K20: =Sales!K21+Aftersales!K21 -> 13887.25 | L20: =Sales!L21+Aftersales!L21 -> 13887.25 | M20: =Sales!M21+Aftersales!M21 -> 13887.25 | N20: 166647 | P20: 175680 | Q20: -9033 | R20: -0.05141734973
A21: Gemeinkosten | B21: =Sales!B22+Aftersales!B22 -> 14171.66667 | C21: =Sales!C22+Aftersales!C22 -> 14171.66667 | D21: =Sales!D22+Aftersales!D22 -> 14171.66667 | E21: =Sales!E22+Aftersales!E22 -> 14171.66667 | F21: =Sales!F22+Aftersales!F22 -> 14171.66667 | G21: =Sales!G22+Aftersales!G22 -> 14171.66667 | H21: =Sales!H22+Aftersales!H22 -> 14171.66667 | I21: =Sales!I22+Aftersales!I22 -> 14171.66667 | J21: =Sales!J22+Aftersales!J22 -> 14171.66667 | K21: =Sales!K22+Aftersales!K22 -> 14171.66667 | L21: =Sales!L22+Aftersales!L22 -> 14171.66667 | M21: =Sales!M22+Aftersales!M22 -> 14171.66667 | N21: 170060 | P21: 169059 | Q21: 1001 | R21: 0.005921009825
A22: Deckungsbeitrag | B22: =Sales!B23+Aftersales!B23 -> 71043.53323 | C22: =Sales!C23+Aftersales!C23 -> 51101.11652 | D22: =Sales!D23+Aftersales!D23 -> 116615.4097 | E22: =Sales!E23+Aftersales!E23 -> 112203.6638 | F22: =Sales!F23+Aftersales!F23 -> 92963.98325 | G22: =Sales!G23+Aftersales!G23 -> 106211.0709 | H22: =Sales!H23+Aftersales!H23 -> 79379.40442 | I22: =Sales!I23+Aftersales!I23 -> 87962.45802 | J22: =Sales!J23+Aftersales!J23 -> 64635.81581 | K22: =Sales!K23+Aftersales!K23 -> 134820.7207 | L22: =Sales!L23+Aftersales!L23 -> 125993.7829 | M22: =Sales!M23+Aftersales!M23 -> 94698.24081 | N22: 1137629.2 | P22: 964733 | Q22: 172896.2 | R22: 0.179216633
A24: indirekte Kosten | B24: =SUM(B25:B31) -> 82992.75 | C24: =SUM(C25:C31) -> 82992.75 | D24: 82992.75 | E24: 82992.75 | F24: 82992.75 | G24: 82992.75 | H24: 82992.75 | I24: 82992.75 | J24: 82992.75 | K24: 82992.75 | L24: 82992.75 | M24: 82992.75 | N24: =SUM(B24:M24) -> 995913 | P24: 1072563 | Q24: -76650 | R24: -0.07146433356
A25: Verwaltungspersonal | B25: =$N$25/12 -> 21250 | C25: 21250 | D25: 21250 | E25: 21250 | F25: 21250 | G25: 21250 | H25: 21250 | I25: 21250 | J25: 21250 | K25: 21250 | L25: 21250 | M25: =$N$25/12 -> 21250 | N25: 255000 | P25: 320345 | Q25: -65345 | R25: -0.2039832056
A26: Imagewerbung | B26: =$N$26/12 -> 1000 | C26: 1000 | D26: 1000 | E26: 1000 | F26: 1000 | G26: 1000 | H26: 1000 | I26: 1000 | J26: 1000 | K26: 1000 | L26: 1000 | M26: =$N$26/12 -> 1000 | N26: 12000 | P26: 7220 | Q26: 4780 | R26: 0.6620498615
A27: Fahrzeugkosten | B27: =$N$27/12 -> 1000 | C27: 1000 | D27: 1000 | E27: 1000 | F27: 1000 | G27: 1000 | H27: 1000 | I27: 1000 | J27: 1000 | K27: 1000 | L27: 1000 | M27: =$N$27/12 -> 1000 | N27: 12000 | P27: 12277 | Q27: -277 | R27: -0.02256251527
A28: Abschreibungen | B28: =$N$28/12 -> 10000 | C28: 10000 | D28: 10000 | E28: 10000 | F28: 10000 | G28: 10000 | H28: 10000 | I28: 10000 | J28: 10000 | K28: 10000 | L28: 10000 | M28: =$N$28/12 -> 10000 | N28: 120000 | P28: 130061 | Q28: -10061 | R28: -0.07735600987
A29: Gemeinkosten | B29: =$N$29/12 -> 30000 | C29: 30000 | D29: 30000 | E29: 30000 | F29: 30000 | G29: 30000 | H29: 30000 | I29: 30000 | J29: 30000 | K29: 30000 | L29: 30000 | M29: =$N$29/12 -> 30000 | N29: 360000 | P29: 364546 | Q29: -4546 | R29: -0.01247030553
A30: Raumkosten | B30: =$N$30/12 -> 16742.75 | C30: 16742.75 | D30: 16742.75 | E30: 16742.75 | F30: 16742.75 | G30: 16742.75 | H30: 16742.75 | I30: 16742.75 | J30: 16742.75 | K30: 16742.75 | L30: 16742.75 | M30: =$N$30/12 -> 16742.75 | N30: =172113+28800 -> 200913 | P30: 172113 | Q30: 28800 | R30: 0.1673319273
A31: Kalk. Kosten Miete Lbg | B31: =$N$31/12 -> 3000 | C31: =$N$31/12 -> 3000 | D31: 3000 | E31: 3000 | F31: 3000 | G31: 3000 | H31: 3000 | I31: 3000 | J31: 3000 | K31: 3000 | L31: 3000 | M31: 3000 | N31: 36000 | P31: 66000 | Q31: -30000 | R31: -0.4545454545
A33: Betriebsergebnis | B33: =B22-B24 -> -11949.21677 | C33: =C22-C24 -> -31891.63348 | D33: 33622.65966 | E33: 29210.91382 | F33: 9971.233246 | G33: 23218.32086 | H33: -3613.34558 | I33: 4969.708019 | J33: -18356.93419 | K33: 51827.97065 | L33: 43001.03295 | M33: 11705.49081 | N33: =N22-N24 -> 141716.2 | P33: -107930 | Q33: 249646.2
A34: Neutrales Ergebnis | B34: =$N$34/12 -> -6416.666667 | C34: -6416.666667 | D34: -6416.666667 | E34: -6416.666667 | F34: -6416.666667 | G34: -6416.666667 | H34: -6416.666667 | I34: -6416.666667 | J34: -6416.666667 | K34: -6416.666667 | L34: -6416.666667 | M34: =$N$34/12 -> -6416.666667 | N34: =-77000 -> -77000 | P34: -82893 | Q34: 5893
A35: Untenehmensergebnis | B35: =SUM(B33:B34) -> -18365.88343 | C35: =SUM(C33:C34) -> -38308.30015 | D35: 27205.993 | E35: 22794.24715 | F35: 3554.56658 | G35: 16801.6542 | H35: -10030.01225 | I35: -1446.958647 | J35: -24773.60086 | K35: 45411.30398 | L35: 36584.36628 | M35: 5288.824146 | N35: =N33+N34 -> 64716.2 | P35: -190722.23 | Q35: 255438.43
M37: DB pro Tag | N37: =N22/251 -> 4532.387251
M38: DB pro Monat | N38: =(N37*251)/12 -> 94802.43333
M40: Umsatzrendite | N40: =N35/N5 -> 0.00486393705
M42: Personal vs. BE | N42: =N10+N11+N17+N25 -> 1347555.5
J43: =790/220 -> 3.590909091 | M43: Ziel < 50% | N43: =N42/N7 -> 0.485891132
M45: AfA vs. BE | N45: =N20+N28 -> 286647
M46: Ziel < 5% | N46: =N45/N7 -> 0.1033569566

Sheet Sales
B1: Januar | C1: Februar | D1: März | E1: April | F1: Mai | G1: Juni | H1: Juli | I1: August | J1: September | K1: Oktober | L1: November | M1: Dezember | N1: Gesamt
A2: Saison | B2: =(NW!B2+GW!B2)/2 -> 0.07875 | C2: =(NW!C2+GW!C2)/2 -> 0.07225 | D2: =(NW!D2+GW!D2)/2 -> 0.1085 | E2: =(NW!E2+GW!E2)/2 -> 0.0773 | F2: =(NW!F2+GW!F2)/2 -> 0.09865 | G2: =(NW!G2+GW!G2)/2 -> 0.0954 | H2: =(NW!H2+GW!H2)/2 -> 0.07975 | I2: =(NW!I2+GW!I2)/2 -> 0.0848 | J2: =(NW!J2+GW!J2)/2 -> 0.0656 | K2: =(NW!K2+GW!K2)/2 -> 0.08625 | L2: =(NW!L2+GW!L2)/2 -> 0.0786 | M2: =(NW!M2+GW!M2)/2 -> 0.07415 | N2: =SUM(B2:M2) -> 1
A3: NW + GW Stk. | B3: =$N$3*B2 -> 61.425 | C3: =$N$3*C2 -> 56.355 | D3: 84.63 | E3: 60.294 | F3: 76.947 | G3: 74.412 | H3: 62.205 | I3: 66.144 | J3: 51.168 | K3: 67.275 | L3: 61.308 | M3: 57.837 | N3: =NW!N3+GW!N3 -> 780
A4: Umsatzerlöse | B4: =$N$4*B2 -> 759937.5 | C4: =$N$4*C2 -> 697212.5 | D4: 1047025 | E4: 745945 | F4: 951972.5 | G4: 920610 | H4: 769587.5 | I4: 818320 | J4: 633040 | K4: 832312.5 | L4: 758490 | M4: 715547.5 | N4: =NW!N4+GW!N4 -> 9650000
A5: Umsatz / Stk. | B5: =$N$4/$N$3 -> 12371.79487 | C5: =$N$4/$N$3 -> 12371.79487 | D5: 12371.79487 | E5: 12371.79487 | F5: 12371.79487 | G5: 12371.79487 | H5: 12371.79487 | I5: 12371.79487 | J5: 12371.79487 | K5: 12371.79487 | L5: 12371.79487 | M5: 12371.79487 | N5: =N4/N3 -> 12371.79487
A6: Einsatzwerte | B6: =$N$6*B2 -> 700264.6875 | C6: =$N$6*C2 -> 642465.0625 | D6: 964809.125 | E6: 687370.925 | F6: 877220.4625 | G6: 848320.65 | H6: 709156.9375 | I6: 754062.8 | J6: 583331.6 | K6: 766956.5625 | L6: 698930.85 | M6: 659360.3375 | N6: =NW!N6+GW!N6 -> 8892250
A7: Bruttoertrag | B7: =$N$7*B2 -> 59672.8125 | C7: =$N$7*C2 -> 54747.4375 | D7: 82215.875 | E7: 58574.075 | F7: 74752.0375 | G7: 72289.35 | H7: 60430.5625 | I7: 64257.2 | J7: 49708.4 | K7: 65355.9375 | L7: 59559.15 | M7: 56187.1625 | N7: =N4-N6 -> 757750
A8: Bruttoertrag / Stk. | B8: =B7/B3 -> 971.474359 | C8: =C7/C3 -> 971.474359 | D8: 971.474359 | E8: 971.474359 | F8: 971.474359 | G8: 971.474359 | H8: 971.474359 | I8: 971.474359 | J8: 971.474359 | K8: 971.474359 | L8: 971.474359 | M8: 971.474359 | N8: =N7/N3 -> 971.474359
A10: Variable Kosten | B10: =$N$10*B2 -> 19986.75 | C10: =$N$10*C2 -> 18337.05 | D10: 27537.3 | E10: 19618.74 | F10: 25037.37 | G10: 24212.52 | H10: 20240.55 | I10: 21522.24 | J10: 16649.28 | K10: 21890.25 | L10: 19948.68 | M10: 18819.27 | N10: =NW!N10+GW!N10 -> 253800
A11: Fixum/Prov./Soz. | B11: =$N$11*B2 -> 16460.7975 | C11: =$N$11*C2 -> 15102.1285 | D11: 22679.321 | E11: 16157.7098 | F11: 20620.4149 | G11: 19941.0804 | H11: 16669.8235 | I11: 17725.4048 | J11: 13712.1056 | K11: 18028.4925 | L11: 16429.4436 | M11: 15499.2779 | N11: =NW!N11+GW!N11 -> 209026
A12: Provisionen | B12: =$N$12*B2 -> 853.02 | C12: =$N$12*C2 -> 782.612 | D12: 1175.272 | E12: 837.3136 | F12: 1068.5768 | G12: 1033.3728 | H12: 863.852 | I12: 918.5536 | J12: 710.5792 | K12: 934.26 | L12: 851.3952 | M12: 803.1928 | N12: =NW!N12+GW!N12 -> 10832
A13: Fertigmachen | B13: =$N$13*B2 -> 2101.995 | C13: =$N$13*C2 -> 1928.497 | D13: 2896.082 | E13: 2063.2916 | F13: 2633.1658 | G13: 2546.4168 | H13: 2128.687 | I13: 2263.4816 | J13: 1750.9952 | K13: 2302.185 | L13: 2097.9912 | M13: 1979.2118 | N13: =NW!N13+GW!N13 -> 26692
A14: Kulanz | B14: =$N$14*B2 -> 570.9375 | C14: =$N$14*C2 -> 523.8125 | D14: 786.625 | E14: 560.425 | F14: 715.2125 | G14: 691.65 | H14: 578.1875 | I14: 614.8 | J14: 475.6 | K14: 625.3125 | L14: 569.85 | M14: 537.5875 | N14: =NW!N14+GW!N14 -> 7250
A15: sonst. variable Kosten | B15: =$N$15*B2 -> 0 | C15: =$N$15*C2 -> 0 | D15: 0 | E15: 0 | F15: 0 | G15: 0 | H15: 0 | I15: 0 | J15: 0 | K15: 0 | L15: 0 | M15: 0 | N15: =NW!N15+GW!N15 -> 0
A16: Bruttoertrag II | B16: =$N$16*B2 -> 39686.0625 | C16: =$N$16*C2 -> 36410.3875 | D16: 54678.575 | E16: 38955.335 | F16: 49714.6675 | G16: 48076.83 | H16: 40190.0125 | I16: 42734.96 | J16: 33059.12 | K16: 43465.6875 | L16: 39610.47 | M16: 37367.8925 | N16: =N7-N10 -> 503950
A17: Direkte Kosten | B17: =$N$17/12 -> 29075 | C17: =$N$17/12 -> 29075 | D17: 29075 | E17: 29075 | F17: 29075 | G17: 29075 | H17: 29075 | I17: 29075 | J17: 29075 | K17: 29075 | L17: 29075 | M17: 29075 | N17: =N18+N19+N20+N21+N22 -> 348900
A18: Personalkosten | B18: =$N$18/12 -> 9150 | C18: =$N$18/12 -> 9150 | D18: 9150 | E18: 9150 | F18: 9150 | G18: 9150 | H18: 9150 | I18: 9150 | J18: 9150 | K18: 9150 | L18: 9150 | M18: 9150 | N18: =NW!N18+GW!N18 -> 109800
A19: Werbekosten | B19: =$N$19/12 -> 3383.333333 | C19: =$N$19/12 -> 3383.333333 | D19: 3383.333333 | E19: 3383.333333 | F19: 3383.333333 | G19: 3383.333333 | H19: 3383.333333 | I19: 3383.333333 | J19: 3383.333333 | K19: 3383.333333 | L19: 3383.333333 | M19: 3383.333333 | N19: =NW!N19+GW!N19 -> 40600
A20: Fahrzeugkosten | B20: =$N$20/12 -> 3375 | C20: =$N$20/12 -> 3375 | D20: 3375 | E20: 3375 | F20: 3375 | G20: 3375 | H20: 3375 | I20: 3375 | J20: 3375 | K20: 3375 | L20: 3375 | M20: 3375 | N20: =NW!N20+GW!N20 -> 40500
A21: Abschreibungen | B21: =$N$21/12 -> 10000 | C21: =$N$21/12 -> 10000 | D21: 10000 | E21: 10000 | F21: 10000 | G21: 10000 | H21: 10000 | I21: 10000 | J21: 10000 | K21: 10000 | L21: 10000 | M21: 10000 | N21: =NW!N21+GW!N21 -> 120000
A22: Gemeinkosten | B22: =$N$22/12 -> 3166.666667 | C22: =$N$22/12 -> 3166.666667 | D22: 3166.666667 | E22: 3166.666667 | F22: 3166.666667 | G22: 3166.666667 | H22: 3166.666667 | I22: 3166.666667 | J22: 3166.666667 | K22: 3166.666667 | L22: 3166.666667 | M22: 3166.666667 | N22: =NW!N22+GW!N22 -> 38000
A23: Deckungsbeitrag | B23: =B16-B17 -> 10611.0625 | C23: =C16-C17 -> 7335.3875 | D23: 25603.575 | E23: 9880.335 | F23: 20639.6675 | G23: 19001.83 | H23: 11115.0125 | I23: 13659.96 | J23: 3984.12 | K23: 14390.6875 | L23: 10535.47 | M23: 8292.8925 | N23: =N16-N17 -> 155050
A24: Deckungsbeitrag / Stk. | B24: =B23/B3 -> 172.7482702 | C24: =C23/C3 -> 130.1639162 | D24: 302.5354484 | E24: 163.8692905 | F24: 268.2322573 | G24: 255.3597538 | H24: 178.6835865 | I24: 206.5185051 | J24: 77.86350844 | K24: 213.9083984 | L24: 171.8449468 | M24: 143.3838633 | N24: =N23/N3 -> 198.7820513

Sheet NW
B1: Januar | C1: Februar | D1: März | E1: April | F1: Mai | G1: Juni | H1: Juli | I1: August | J1: September | K1: Oktober | L1: November | M1: Dezember | N1: Gesamt
A2: Saison | B2: 0.0771 | C2: 0.0716 | D2: 0.0894 | E2: 0.0681 | F2: 0.0972 | G2: 0.1037 | H2: 0.0704 | I2: 0.0781 | J2: 0.0747 | K2: 0.0957 | L2: 0.0922 | M2: 0.0818 | N2: =SUM(B2:M2) -> 1 | P2: Opel | Q2: Hyundai
A3: Neuwagen Stk. | B3: =$N$3*B2 -> 30.84 | C3: =$N$3*C2 -> 28.64 | D3: 35.76 | E3: 27.24 | F3: 38.88 | G3: 41.48 | H3: 28.16 | I3: 31.24 | J3: 29.88 | K3: 38.28 | L3: 36.88 | M3: 32.72 | N3: 400 | P3: 240 | Q3: 160
A4: Umsatzerlöse | B4: =$N$4*B2 -> 524280 | C4: =$N$4*C2 -> 486880 | D4: 607920 | E4: 463080 | F4: 660960 | G4: 705160 | H4: 478720 | I4: 531080 | J4: 507960 | K4: 650760 | L4: 626960 | M4: 556240 | N4: =N3*N5 -> 6800000
A5: Umsatz / Stk. | B5: =$N$5 -> 17000 | C5: =$N$5 -> 17000 | D5: 17000 | E5: 17000 | F5: 17000 | G5: 17000 | H5: 17000 | I5: 17000 | J5: 17000 | K5: 17000 | L5: 17000 | M5: 17000 | N5: 17000
A6: Einsatzwerte | B6: =$N$6*B2 -> 482337.6 | C6: =$N$6*C2 -> 447929.6 | D6: 559286.4 | E6: 426033.6 | F6: 608083.2 | G6: 648747.2 | H6: 440422.4 | I6: 488593.6 | J6: 467323.2 | K6: 598699.2 | L6: 576803.2 | M6: 511740.8 | N6: =(N4-N4*O6) -> 6256000 | O6: 0.08 | P6: (BE!!!)
A7: Bruttoertrag | B7: =$N$7*B2 -> 41942.4 | C7: =$N$7*C2 -> 38950.4 | D7: 48633.6 | E7: 37046.4 | F7: 52876.8 | G7: 56412.8 | H7: 38297.6 | I7: 42486.4 | J7: 40636.8 | K7: 52060.8 | L7: 50156.8 | M7: 44499.2 | N7: =N4-N6+R6 -> 544000
A8: Bruttoertrag / Stk. | B8: =$N$8 -> 1360 | C8: =$N$8 -> 1360 | D8: 1360 | E8: 1360 | F8: 1360 | G8: 1360 | H8: 1360 | I8: 1360 | J8: 1360 | K8: 1360 | L8: 1360 | M8: 1360 | N8: =N7/N3 -> 1360
A10: Variable Kosten | B10: =$N$10*B2 -> 10485.6 | C10: =$N$10*C2 -> 9737.6 | D10: 12158.4 | E10: 9261.6 | F10: 13219.2 | G10: 14103.2 | H10: 9574.4 | I10: 10621.6 | J10: 10159.2 | K10: 13015.2 | L10: 12539.2 | M10: 11124.8 | N10: =N3*R10 -> 136000 | Q10: pro Fzg. | R10: 340
A11: Fixum/Prov./Soz. | B11: =$N$11*B2 -> 9122.472 | C11: =$N$11*C2 -> 8471.712 | D11: 10577.808 | E11: 8057.592 | F11: 11500.704 | G11: 12269.784 | H11: 8329.728 | I11: 9240.792 | J11: 8838.504 | K11: 11323.224 | L11: 10909.104 | M11: 9678.576 | N11: =N10*O11 -> 118320 | O11: 0.87 | P11: =SUM(O11:O14) -> 1
A12: Provisionen | B12: =$N$12*B2 -> 471.852 | C12: =$N$12*C2 -> 438.192 | D12: 547.128 | E12: 416.772 | F12: 594.864 | G12: 634.644 | H12: 430.848 | I12: 477.972 | J12: 457.164 | K12: 585.684 | L12: 564.264 | M12: 500.616 | N12: =N10*O12 -> 6120 | O12: 0.045
A13: Fertigmachen | B13: =$N$13*B2 -> 786.42 | C13: =$N$13*C2 -> 730.32 | D13: 911.88 | E13: 694.62 | F13: 991.44 | G13: 1057.74 | H13: 718.08 | I13: 796.62 | J13: 761.94 | K13: 976.14 | L13: 940.44 | M13: 834.36 | N13: =N10*O13 -> 10200 | O13: 0.075
A14: Kulanz | B14: =$N$14*B2 -> 104.856 | C14: =$N$14*C2 -> 97.376 | D14: 121.584 | E14: 92.616 | F14: 132.192 | G14: 141.032 | H14: 95.744 | I14: 106.216 | J14: 101.592 | K14: 130.152 | L14: 125.392 | M14: 111.248 | N14: =N10*O14 -> 1360 | O14: 0.01
A15: sonst. variable Kosten | B15: =$N$15*B2 -> 0 | C15: =$N$15*C2 -> 0 | D15: 0 | E15: 0 | F15: 0 | G15: 0 | H15: 0 | I15: 0 | J15: 0 | K15: 0 | L15: 0 | M15: 0 | N15: 0
A16: Bruttoertrag II | B16: =$N$16*B2 -> 31456.8 | C16: =$N$16*C2 -> 29212.8 | D16: 36475.2 | E16: 27784.8 | F16: 39657.6 | G16: 42309.6 | H16: 28723.2 | I16: 31864.8 | J16: 30477.6 | K16: 39045.6 | L16: 37617.6 | M16: 33374.4 | N16: =N7-N10 -> 408000
A17: Direkte Kosten | B17: =$N$17/12 -> 23733.33333 | C17: =$N$17/12 -> 23733.33333 | D17: 23733.33333 | E17: 23733.33333 | F17: 23733.33333 | G17: 23733.33333 | H17: 23733.33333 | I17: 23733.33333 | J17: 23733.33333 | K17: 23733.33333 | L17: 23733.33333 | M17: 23733.33333 | N17: =N18+N19+N20+N21+N22 -> 284800
A18: Personalkosten | B18: =$N$18/12 -> 5400 | C18: =$N$18/12 -> 5400 | D18: 5400 | E18: 5400 | F18: 5400 | G18: 5400 | H18: 5400 | I18: 5400 | J18: 5400 | K18: 5400 | L18: 5400 | M18: 5400 | N18: 64800
A19: Werbekosten | B19: =$N$19/12 -> 3333.333333 | C19: =$N$19/12 -> 3333.333333 | D19: 3333.333333 | E19: 3333.333333 | F19: 3333.333333 | G19: 3333.333333 | H19: 3333.333333 | I19: 3333.333333 | J19: 3333.333333 | K19: 3333.333333 | L19: 3333.333333 | M19: 3333.333333 | N19: 40000
A20: Fahrzeugkosten | B20: =$N$20/12 -> 3333.333333 | C20: 3333.333333 | D20: 3333.333333 | E20: 3333.333333 | F20: 3333.333333 | G20: 3333.333333 | H20: 3333.333333 | I20: 3333.333333 | J20: 3333.333333 | K20: 3333.333333 | L20: 3333.333333 | M20: =$N$20/12 -> 3333.333333 | N20: 40000
A21: Abschreibungen | B21: =$N$21/12 -> 10000 | C21: 10000 | D21: 10000 | E21: 10000 | F21: 10000 | G21: 10000 | H21: 10000 | I21: 10000 | J21: 10000 | K21: 10000 | L21: 10000 | M21: =$N$21/12 -> 10000 | N21: 120000
A22: Gemeinkosten | B22: =$N$22/12 -> 1666.666667 | C22: =$N$22/12 -> 1666.666667 | D22: 1666.666667 | E22: 1666.666667 | F22: 1666.666667 | G22: 1666.666667 | H22: 1666.666667 | I22: 1666.666667 | J22: 1666.666667 | K22: 1666.666667 | L22: 1666.666667 | M22: 1666.666667 | N22: 20000
A23: Deckungsbeitrag | B23: =B16-B17 -> 7723.466667 | C23: =C16-C17 -> 5479.466667 | D23: 12741.86667 | E23: 4051.466667 | F23: 15924.26667 | G23: 18576.26667 | H23: 4989.866667 | I23: 8131.466667 | J23: 6744.266667 | K23: 15312.26667 | L23: 13884.26667 | M23: 9641.066667 | N23: =N16-N17 -> 123200 | P23: DB in % vom Umsatz
A24: Deckungsbeitrag / Stk. | B24: =$N$24 -> 308 | C24: =$N$24 -> 308 | D24: 308 | E24: 308 | F24: 308 | G24: 308 | H24: 308 | I24: 308 | J24: 308 | K24: 308 | L24: 308 | M24: 308 | N24: =N23/N3 -> 308 | P24: =N23/N4 -> 0.01811764706
P25: Ziel > 3%

Sheet GW
B1: Januar | C1: Februar | D1: März | E1: April | F1: Mai | G1: Juni | H1: Juli | I1: August | J1: September | K1: Oktober | L1: November | M1: Dezember | N1: Gesamt
A2: Saison | B2: 0.0804 | C2: 0.0729 | D2: 0.1276 | E2: 0.0865 | F2: 0.1001 | G2: 0.0871 | H2: 0.0891 | I2: 0.0915 | J2: 0.0565 | K2: 0.0768 | L2: 0.065 | M2: 0.0665 | N2: =SUM(B2:M2) -> 1
A3: GW Stk. | B3: =$N$3*B2 -> 30.552 | C3: =$N$3*C2 -> 27.702 | D3: 48.488 | E3: 32.87 | F3: 38.038 | G3: 33.098 | H3: 33.858 | I3: 34.77 | J3: 21.47 | K3: 29.184 | L3: 24.7 | M3: 25.27 | N3: 380 | Q3: GW pro NW | R3: =N3/NW!N3 -> 0.95
A4: Umsatzerlöse | B4: =$N$4*B2 -> 229140 | C4: =$N$4*C2 -> 207765 | D4: 363660 | E4: 246525 | F4: 285285 | G4: 248235 | H4: 253935 | I4: 260775 | J4: 161025 | K4: 218880 | L4: 185250 | M4: 189525 | N4: =N3*N5 -> 2850000 | Q4: inkl. Export!!!
A5: Umsatz / Stk. | B5: =$N$5 -> 7500 | C5: =$N$5 -> 7500 | D5: 7500 | E5: 7500 | F5: 7500 | G5: 7500 | H5: 7500 | I5: 7500 | J5: 7500 | K5: 7500 | L5: 7500 | M5: 7500 | N5: 7500
A6: Einsatzwerte | B6: =$N$6*B2 -> 211954.5 | C6: =$N$6*C2 -> 192182.625 | D6: 336385.5 | E6: 228035.625 | F6: 263888.625 | G6: 229617.375 | H6: 234889.875 | I6: 241216.875 | J6: 148948.125 | K6: 202464 | L6: 171356.25 | M6: 175310.625 | N6: =(N4-N4*O6) -> 2636250 | O6: 0.075 | P6: (BE!!!)
A7: Bruttoertrag | B7: =$N$7*B2 -> 17185.5 | C7: =$N$7*C2 -> 15582.375 | D7: 27274.5 | E7: 18489.375 | F7: 21396.375 | G7: 18617.625 | H7: 19045.125 | I7: 19558.125 | J7: 12076.875 | K7: 16416 | L7: 13893.75 | M7: 14214.375 | N7: =N4-N6 -> 213750
A8: Bruttoertrag / Stk. | B8: =$N$8 -> 562.5 | C8: =$N$8 -> 562.5 | D8: 562.5 | E8: 562.5 | F8: 562.5 | G8: 562.5 | H8: 562.5 | I8: 562.5 | J8: 562.5 | K8: 562.5 | L8: 562.5 | M8: 562.5 | N8: =N7/N3 -> 562.5
A10: Variable Kosten | B10: =$N$10*B2 -> 9471.12 | C10: =$N$10*C2 -> 8587.62 | D10: 15031.28 | E10: 10189.7 | F10: 11791.78 | G10: 10260.38 | H10: 10495.98 | I10: 10778.7 | J10: 6655.7 | K10: 9047.04 | L10: 7657 | M10: 7833.7 | N10: =N3*R10 -> 117800 | Q10: pro Fzg. | R10: 310
A11: Fixum/Prov./Soz. | B11: =$N$11*B2 -> 7292.7624 | C11: =$N$11*C2 -> 6612.4674 | D11: 11574.0856 | E11: 7846.069 | F11: 9079.6706 | G11: 7900.4926 | H11: 8081.9046 | I11: 8299.599 | J11: 5124.889 | K11: 6966.2208 | L11: 5895.89 | M11: 6031.949 | N11: =(N10*O11) -> 90706 | O11: 0.77 | P11: =SUM(O11:O15) -> 1
A12: Provisionen | B12: =$N$12*B2 -> 378.8448 | C12: =$N$12*C2 -> 343.5048 | D12: 601.2512 | E12: 407.588 | F12: 471.6712 | G12: 410.4152 | H12: 419.8392 | I12: 431.148 | J12: 266.228 | K12: 361.8816 | L12: 306.28 | M12: 313.348 | N12: =N10*O12 -> 4712 | O12: 0.04
A13: Fertigmachen | B13: =$N$13*B2 -> 1325.9568 | C13: =$N$13*C2 -> 1202.2668 | D13: 2104.3792 | E13: 1426.558 | F13: 1650.8492 | G13: 1436.4532 | H13: 1469.4372 | I13: 1509.018 | J13: 931.798 | K13: 1266.5856 | L13: 1071.98 | M13: 1096.718 | N13: =N10*O13 -> 16492 | O13: 0.14
A14: Kulanz | B14: =$N$14*B2 -> 473.556 | C14: =$N$14*C2 -> 429.381 | D14: 751.564 | E14: 509.485 | F14: 589.589 | G14: 513.019 | H14: 524.799 | I14: 538.935 | J14: 332.785 | K14: 452.352 | L14: 382.85 | M14: 391.685 | N14: =N10*O14 -> 5890 | O14: 0.05
A15: sonst. variable Kosten | B15: =$N$15*B2 -> 0 | C15: =$N$15*C2 -> 0 | D15: 0 | E15: 0 | F15: 0 | G15: 0 | H15: 0 | I15: 0 | J15: 0 | K15: 0 | L15: 0 | M15: 0 | N15: =N10*O15 -> 0 | O15: 0
A16: Bruttoertrag II | B16: =$N$16*B2 -> 7714.38 | C16: =$N$16*C2 -> 6994.755 | D16: 12243.22 | E16: 8299.675 | F16: 9604.595 | G16: 8357.245 | H16: 8549.145 | I16: 8779.425 | J16: 5421.175 | K16: 7368.96 | L16: 6236.75 | M16: 6380.675 | N16: =N7-N10 -> 95950
A17: Direkte Kosten | B17: =$N$17/12 -> 5341.666667 | C17: =$N$17/12 -> 5341.666667 | D17: 5341.666667 | E17: 5341.666667 | F17: 5341.666667 | G17: 5341.666667 | H17: 5341.666667 | I17: 5341.666667 | J17: 5341.666667 | K17: 5341.666667 | L17: 5341.666667 | M17: 5341.666667 | N17: =SUM(N18:N22) -> 64100
A18: Personalkosten | B18: =$N$18/12 -> 3750 | C18: 3750 | D18: 3750 | E18: 3750 | F18: 3750 | G18: 3750 | H18: 3750 | I18: 3750 | J18: 3750 | K18: 3750 | L18: 3750 | M18: =$N$18/12 -> 3750 | N18: 45000 | S18: 43000
A19: Werbekosten | B19: =$N$19/12 -> 50 | C19: =$N$19/12 -> 50 | D19: 50 | E19: 50 | F19: 50 | G19: 50 | H19: 50 | I19: 50 | J19: 50 | K19: 50 | L19: 50 | M19: 50 | N19: 600 | S19: 3000
A20: Fahrzeugkosten | B20: =$N$20/12 -> 41.66666667 | C20: 41.66666667 | D20: 41.66666667 | E20: 41.66666667 | F20: 41.66666667 | G20: 41.66666667 | H20: 41.66666667 | I20: 41.66666667 | J20: 41.66666667 | K20: 41.66666667 | L20: 41.66666667 | M20: =$N$20/12 -> 41.66666667 | N20: 500 | S20: 500
A21: Abschreibungen | B21: =$N$21/12 -> 0 | C21: =$N$21/12 -> 0 | D21: 0 | E21: 0 | F21: 0 | G21: 0 | H21: 0 | I21: 0 | J21: 0 | K21: 0 | L21: 0 | M21: 0 | N21: 0
A22: Gemeinkosten | B22: =$N$22/12 -> 1500 | C22: =$N$22/12 -> 1500 | D22: 1500 | E22: 1500 | F22: 1500 | G22: 1500 | H22: 1500 | I22: 1500 | J22: 1500 | K22: 1500 | L22: 1500 | M22: 1500 | N22: 18000 | P22: Gebrauchtwagen KPIs
A23: Deckungsbeitrag | B23: =B16-B17 -> 2372.713333 | C23: =C16-C17 -> 1653.088333 | D23: 6901.553333 | E23: 2958.008333 | F23: 4262.928333 | G23: 3015.578333 | H23: 3207.478333 | I23: 3437.758333 | J23: 79.50833333 | K23: 2027.293333 | L23: 895.0833333 | M23: 1039.008333 | N23: =N16-N17 -> 31850 | P23: DB in % vom Umsatz | S23: Umschlag GW | U23: Lagerdauer
A24: Deckungsbeitrag / Stk. | B24: =B23/B3 -> 77.66147334 | C24: =C23/C3 -> 59.67397059 | D24: 142.3352857 | E24: 89.99112666 | F24: 112.0702543 | G24: 91.11059077 | H24: 94.73324867 | I24: 98.87139296 | J24: 3.703229312 | K24: 69.4659174 | L24: 36.23819163 | M24: 41.11627754 | N24: =N23/N3 -> 83.81578947 | P24: =N23/N4 -> 0.0111754386 | S24: =(N4/S26) -> 3.87755102 | U24: =360/S24 -> 92.84210526
P25: Ziel > 3% | S25: Ziel: 6 - 8 | U25: Ziel: 45 Tage
S26: 735000
S27: VK vs. VK (!!!)

Sheet Aftersales
B1: Januar | C1: Februar | D1: März | E1: April | F1: Mai | G1: Juni | H1: Juli | I1: August | J1: September | K1: Oktober | L1: November | M1: Dezember | N1: Gesamt
A2: Saison | B2: 0.07242395954 | C2: 0.06394698535 | D2: 0.08797711824 | E2: 0.09373032697 | F2: 0.0784723441 | G2: 0.08604305758 | H2: 0.07640740123 | I2: 0.07947847958 | J2: 0.07253546096 | K2: 0.1029396894 | L2: 0.1004109922 | M2: 0.08563418483 | N2: =SUM(B2:M2) -> 1
A3: verk. Stunden | B3: =$N$3*B2 -> 1296.388876 | C3: =$N$3*C2 -> 1144.651038 | D3: 1574.790416 | E3: 1677.772853 | F3: 1404.654959 | G3: 1540.170731 | H3: 1367.692482 | I3: 1422.664784 | J3: 1298.384751 | K3: 1842.620441 | L3: 1797.35676 | M3: 1532.851909 | N3: =ME!N3+KA!N3+LA!N3+'T&Z'!N3 -> 17900
A4: Umsatzerlöse | B4: =$N$4*B2 -> 264732.1684 | C4: =$N$4*C2 -> 233746.1829 | D4: 321583.816 | E4: 342613.589 | F4: 286840.9011 | G4: 314514.2209 | H4: 279292.8906 | I4: 290518.6401 | J4: 265139.7409 | K4: 376276.682 | L4: 367033.5046 | M4: 313019.6634 | N4: =ME!N4+KA!N4+LA!N4+'T&Z'!N4+MW!N3 -> 3655312
A5: Umsatz / Stk. | B5: =B4/B3 -> 204.2073743 | C5: =C4/C3 -> 204.2073743 | D5: 204.2073743 | E5: 204.2073743 | F5: 204.2073743 | G5: 204.2073743 | H5: 204.2073743 | I5: 204.2073743 | J5: 204.2073743 | K5: 204.2073743 | L5: 204.2073743 | M5: 204.2073743 | N5: 204.2073743
A6: Einsatzwerte | B6: =$N$6*B2 -> 118753.045 | C6: =$N$6*C2 -> 104853.4115 | D6: 144255.4473 | E6: 153688.9423 | F6: 128670.5376 | G6: 141084.182 | H6: 125284.6657 | I6: 130320.2907 | J6: 118935.8731 | K6: 168789.4676 | L6: 164643.1809 | M6: 140413.7563 | N6: =ME!N6+KA!N6+LA!N6+'T&Z'!N5+MW!N4 -> 1639692.8
A7: Bruttoertrag | B7: =$N$7*B2 -> 145979.1234 | C7: =$N$7*C2 -> 128892.7715 | D7: 177328.3687 | E7: 188924.6467 | F7: 158170.3634 | G7: 173430.0389 | H7: 154008.2249 | I7: 160198.3494 | J7: 146203.8678 | K7: 207487.2144 | L7: 202390.3237 | M7: 172605.9071 | N7: =N4-N6 -> 2015619.2
A8: Bruttoertrag / Stk. | B8: =B7/B3 -> 112.6044246 | C8: =C7/C3 -> 112.6044246 | D8: 112.6044246 | E8: 112.6044246 | F8: 112.6044246 | G8: 112.6044246 | H8: 112.6044246 | I8: 112.6044246 | J8: 112.6044246 | K8: 112.6044246 | L8: 112.6044246 | M8: 112.6044246 | N8: =N7/N3 -> 112.6044246
A10: Variable Kosten | B10: =$N$10*B2 -> 3584.985997 | C10: =$N$10*C2 -> 3165.375775 | D10: 4354.867353 | E10: 4639.651185 | F10: 3884.381033 | G10: 4259.13135 | H10: 3782.166361 | I10: 3934.184739 | J10: 3590.505318 | K10: 5095.514626 | L10: 4970.344113 | M10: 4238.892149 | N10: =SUM(N11:N15) -> 49500
A11: Fixum/Prov./Soz. | B11: =$N$11*B2 -> 0 | C11: =$N$11*C2 -> 0 | D11: 0 | E11: 0 | F11: 0 | G11: 0 | H11: 0 | I11: 0 | J11: 0 | K11: 0 | L11: 0 | M11: 0 | N11: =ME!N11+KA!N11+LA!N11+'T&Z'!N9+MW!N8 -> 0
A12: Provisionen | B12: =$N$12*B2 -> 0 | C12: =$N$12*C2 -> 0 | D12: 0 | E12: 0 | F12: 0 | G12: 0 | H12: 0 | I12: 0 | J12: 0 | K12: 0 | L12: 0 | M12: 0 | N12: =ME!N12+KA!N12+LA!N12+'T&Z'!N10+MW!N9 -> 0
A13: Fertigmachen | B13: =$N$13*B2 -> 0 | C13: =$N$13*C2 -> 0 | D13: 0 | E13: 0 | F13: 0 | G13: 0 | H13: 0 | I13: 0 | J13: 0 | K13: 0 | L13: 0 | M13: 0 | N13: =ME!N13+KA!N13+LA!N13+'T&Z'!N11+MW!N10 -> 0
A14: Kulanz | B14: =$N$14*B2 -> 3584.985997 | C14: =$N$14*C2 -> 3165.375775 | D14: 4354.867353 | E14: 4639.651185 | F14: 3884.381033 | G14: 4259.13135 | H14: 3782.166361 | I14: 3934.184739 | J14: 3590.505318 | K14: 5095.514626 | L14: 4970.344113 | M14: 4238.892149 | N14: =ME!N14+KA!N14+LA!N14+'T&Z'!N12+MW!N11 -> 49500
A15: sonst. variable Kosten | B15: =$N$15*B2 -> 0 | C15: =$N$15*C2 -> 0 | D15: 0 | E15: 0 | F15: 0 | G15: 0 | H15: 0 | I15: 0 | J15: 0 | K15: 0 | L15: 0 | M15: 0 | N15: =ME!N15+KA!N15+LA!N15+'T&Z'!N13+MW!N12 -> 0
A16: Bruttoertrag II | B16: =$N$16*B2 -> 142394.1374 | C16: =$N$16*C2 -> 125727.3957 | D16: 172973.5013 | E16: 184284.9955 | F16: 154285.9824 | G16: 169170.9075 | H16: 150226.0586 | I16: 156264.1647 | J16: 142613.3625 | K16: 202391.6998 | L16: 197419.9796 | M16: 168367.015 | N16: =N7-N10 -> 1966119.2
A17: Direkte Kosten | B17: =$N$17/12 -> 81961.66667 | C17: =$N$17/12 -> 81961.66667 | D17: 81961.66667 | E17: 81961.66667 | F17: 81961.66667 | G17: 81961.66667 | H17: 81961.66667 | I17: 81961.66667 | J17: 81961.66667 | K17: 81961.66667 | L17: 81961.66667 | M17: 81961.66667 | N17: =SUM(N18:N22) -> 983540
A18: Personalkosten | B18: =$N$18/12 -> 63574.79167 | C18: =$N$18/12 -> 63574.79167 | D18: 63574.79167 | E18: 63574.79167 | F18: 63574.79167 | G18: 63574.79167 | H18: 63574.79167 | I18: 63574.79167 | J18: 63574.79167 | K18: 63574.79167 | L18: 63574.79167 | M18: 63574.79167 | N18: =ME!N18+KA!N18+LA!N18+'T&Z'!N16+MW!N15 -> 762897.5
A19: Werbekosten | B19: =$N$19/12 -> 480.0416667 | C19: =$N$19/12 -> 480.0416667 | D19: 480.0416667 | E19: 480.0416667 | F19: 480.0416667 | G19: 480.0416667 | H19: 480.0416667 | I19: 480.0416667 | J19: 480.0416667 | K19: 480.0416667 | L19: 480.0416667 | M19: 480.0416667 | N19: =ME!N19+KA!N19+LA!N19+'T&Z'!N17+MW!N16 -> 5760.5
A20: Fahrzeugkosten | B20: =$N$20/12 -> 3014.583333 | C20: =$N$20/12 -> 3014.583333 | D20: 3014.583333 | E20: 3014.583333 | F20: 3014.583333 | G20: 3014.583333 | H20: 3014.583333 | I20: 3014.583333 | J20: 3014.583333 | K20: 3014.583333 | L20: 3014.583333 | M20: 3014.583333 | N20: =ME!N20+KA!N20+LA!N20+'T&Z'!N18+MW!N17 -> 36175
A21: Abschreibungen | B21: =$N$21/12 -> 3887.25 | C21: =$N$21/12 -> 3887.25 | D21: 3887.25 | E21: 3887.25 | F21: 3887.25 | G21: 3887.25 | H21: 3887.25 | I21: 3887.25 | J21: 3887.25 | K21: 3887.25 | L21: 3887.25 | M21: 3887.25 | N21: =ME!N21+KA!N21+LA!N21+'T&Z'!N19+MW!N18 -> 46647
A22: Gemeinkosten | B22: =$N$22/12 -> 11005 | C22: =$N$22/12 -> 11005 | D22: 11005 | E22: 11005 | F22: 11005 | G22: 11005 | H22: 11005 | I22: 11005 | J22: 11005 | K22: 11005 | L22: 11005 | M22: 11005 | N22: =ME!N22+KA!N22+LA!N22+'T&Z'!N20+MW!N19 -> 132060
A23: Deckungsbeitrag | B23: =B16-B17 -> 60432.47073 | C23: =C16-C17 -> 43765.72902 | D23: 91011.83466 | E23: 102323.3288 | F23: 72324.31575 | G23: 87209.24086 | H23: 68264.39192 | I23: 74302.49802 | J23: 60651.69581 | K23: 120430.0332 | L23: 115458.3129 | M23: 86405.34831 | N23: =N16-N17 -> 982579.2
A24: Deckungsbeitrag / Stk. | B24: =B23/B3 -> 46.61600532 | C24: =C23/C3 -> 38.23499702 | D24: 57.7929823 | E24: 60.98759355 | F24: 51.48902601 | G24: 56.62309972 | H24: 49.91209122 | I24: 52.22769189 | J24: 46.71319172 | K24: 65.35802518 | L24: 64.23783832 | M24: 56.36901245 | N24: =N23/N3 -> 54.89269274

Sheet Service
B1: Januar | C1: Februar | D1: März | E1: April | F1: Mai | G1: Juni | H1: Juli | I1: August | J1: September | K1: Oktober | L1: November | M1: Dezember | N1: Gesamt
A2: Saison | B2: 0.07242395954 | C2: 0.06394698535 | D2: 0.08797711824 | E2: 0.09373032697 | F2: 0.0784723441 | G2: 0.08604305758 | H2: 0.07640740123 | I2: 0.07947847958 | J2: 0.07253546096 | K2: 0.1029396894 | L2: 0.1004109922 | M2: 0.08563418483 | N2: =SUM(B2:M2) -> 1
A3: verk. Stunden | B3: =$N$3*B2 -> 1296.388876 | C3: =$N$3*C2 -> 1144.651038 | D3: 1574.790416 | E3: 1677.772853 | F3: 1404.654959 | G3: 1540.170731 | H3: 1367.692482 | I3: 1422.664784 | J3: 1298.384751 | K3: 1842.620441 | L3: 1797.35676 | M3: 1532.851909 | N3: =ME!N3+KA!N3+LA!N3 -> 17900
A4: Umsatzerlöse | B4: =$N$4*B2 -> 126220.4767 | C4: =$N$4*C2 -> 111446.8061 | D4: 153326.5217 | E4: 163353.2138 | F4: 136761.6013 | G4: 149955.8407 | H4: 133162.8189 | I4: 138515.0942 | J4: 126414.8014 | K4: 179403.2907 | L4: 174996.2772 | M4: 149243.2573 | N4: =ME!N4+KA!N4+LA!N4 -> 1742800
A5: Umsatz / Stk. | B5: =B4/B3 -> 97.36312849 | C5: =C4/C3 -> 97.36312849 | D5: 97.36312849 | E5: 97.36312849 | F5: 97.36312849 | G5: 97.36312849 | H5: 97.36312849 | I5: 97.36312849 | J5: 97.36312849 | K5: 97.36312849 | L5: 97.36312849 | M5: 97.36312849 | N5: 97.36312849
A6: Einsatzwerte | B6: =$N$6*B2 -> 33428.00277 | C6: =$N$6*C2 -> 29515.37056 | D6: 40606.71869 | E6: 43262.16972 | F6: 36219.69514 | G6: 39714.03366 | H6: 35266.60011 | I6: 36684.08703 | J6: 33479.46736 | K6: 47512.84305 | L6: 46345.69755 | M6: 39525.31435 | N6: =ME!N6+KA!N6+LA!N6 -> 461560
A7: Bruttoertrag | B7: =$N$7*B2 -> 92792.47393 | C7: =$N$7*C2 -> 81931.43551 | D7: 112719.803 | E7: 120091.0441 | F7: 100541.9062 | G7: 110241.8071 | H7: 97896.21876 | I7: 101831.0072 | J7: 92935.334 | K7: 131890.4477 | L7: 128650.5796 | M7: 109717.943 | N7: =N4-N6 -> 1281240 | O7: =N7/N4 -> 0.7351618086
A8: Bruttoertrag / Stk. | B8: =B7/B3 -> 71.57765363 | C8: =C7/C3 -> 71.57765363 | D8: 71.57765363 | E8: 71.57765363 | F8: 71.57765363 | G8: 71.57765363 | H8: 71.57765363 | I8: 71.57765363 | J8: 71.57765363 | K8: 71.57765363 | L8: 71.57765363 | M8: 71.57765363 | N8: =N7/N3 -> 71.57765363
A10: Variable Kosten | B10: =$N$10*B2 -> 2136.506807 | C10: =$N$10*C2 -> 1886.436068 | D10: 2595.324988 | E10: 2765.044646 | F10: 2314.934151 | G10: 2538.270199 | H10: 2254.018336 | I10: 2344.615148 | J10: 2139.796098 | K10: 3036.720838 | L10: 2962.124269 | M10: 2526.208453 | N10: =SUM(N11:N15) -> 29500
A11: Fixum/Prov./Soz. | B11: =$N$11*B2 -> 0 | C11: =$N$11*C2 -> 0 | D11: 0 | E11: 0 | F11: 0 | G11: 0 | H11: 0 | I11: 0 | J11: 0 | K11: 0 | L11: 0 | M11: 0 | N11: =ME!N11+KA!N11+LA!N11 -> 0
A12: Provisionen | B12: =$N$12*B2 -> 0 | C12: =$N$12*C2 -> 0 | D12: 0 | E12: 0 | F12: 0 | G12: 0 | H12: 0 | I12: 0 | J12: 0 | K12: 0 | L12: 0 | M12: 0 | N12: =ME!N12+KA!N12+LA!N12 -> 0
A13: Fertigmachen | B13: =$N$13*B2 -> 0 | C13: =$N$13*C2 -> 0 | D13: 0 | E13: 0 | F13: 0 | G13: 0 | H13: 0 | I13: 0 | J13: 0 | K13: 0 | L13: 0 | M13: 0 | N13: =ME!N13+KA!N13+LA!N13 -> 0
A14: Kulanz | B14: =$N$14*B2 -> 2136.506807 | C14: =$N$14*C2 -> 1886.436068 | D14: 2595.324988 | E14: 2765.044646 | F14: 2314.934151 | G14: 2538.270199 | H14: 2254.018336 | I14: 2344.615148 | J14: 2139.796098 | K14: 3036.720838 | L14: 2962.124269 | M14: 2526.208453 | N14: =ME!N14+KA!N14+LA!N14 -> 29500
A15: sonst. variable Kosten | B15: =$N$15*B2 -> 0 | C15: =$N$15*C2 -> 0 | D15: 0 | E15: 0 | F15: 0 | G15: 0 | H15: 0 | I15: 0 | J15: 0 | K15: 0 | L15: 0 | M15: 0 | N15: =ME!N15+KA!N15+LA!N15 -> 0
A16: Bruttoertrag II | B16: =$N$16*B2 -> 90655.96712 | C16: =$N$16*C2 -> 80044.99945 | D16: 110124.478 | E16: 117325.9995 | F16: 98226.97201 | G16: 107703.5369 | H16: 95642.20042 | I16: 99486.39203 | J16: 90795.5379 | K16: 128853.7268 | L16: 125688.4554 | M16: 107191.7345 | N16: =N7-N10 -> 1251740
A17: Direkte Kosten | B17: =$N$17/12 -> 56416.66667 | C17: =$N$17/12 -> 56416.66667 | D17: 56416.66667 | E17: 56416.66667 | F17: 56416.66667 | G17: 56416.66667 | H17: 56416.66667 | I17: 56416.66667 | J17: 56416.66667 | K17: 56416.66667 | L17: 56416.66667 | M17: 56416.66667 | N17: =SUM(N18:N22) -> 677000
A18: Personalkosten | B18: =$N$18/12 -> 44482.5 | C18: =$N$18/12 -> 44482.5 | D18: 44482.5 | E18: 44482.5 | F18: 44482.5 | G18: 44482.5 | H18: 44482.5 | I18: 44482.5 | J18: 44482.5 | K18: 44482.5 | L18: 44482.5 | M18: 44482.5 | N18: =ME!N18+KA!N18+LA!N18 -> 533790
A19: Werbekosten | B19: =$N$19/12 -> 425 | C19: =$N$19/12 -> 425 | D19: 425 | E19: 425 | F19: 425 | G19: 425 | H19: 425 | I19: 425 | J19: 425 | K19: 425 | L19: 425 | M19: 425 | N19: =ME!N19+KA!N19+LA!N19 -> 5100
A20: Fahrzeugkosten | B20: =$N$20/12 -> 993.75 | C20: =$N$20/12 -> 993.75 | D20: 993.75 | E20: 993.75 | F20: 993.75 | G20: 993.75 | H20: 993.75 | I20: 993.75 | J20: 993.75 | K20: 993.75 | L20: 993.75 | M20: 993.75 | N20: =ME!N20+KA!N20+LA!N20 -> 11925
A21: Abschreibungen | B21: =$N$21/12 -> 0 | C21: =$N$21/12 -> 0 | D21: 0 | E21: 0 | F21: 0 | G21: 0 | H21: 0 | I21: 0 | J21: 0 | K21: 0 | L21: 0 | M21: 0 | N21: =ME!N21+KA!N21+LA!N21 -> 0
A22: Gemeinkosten | B22: =$N$22/12 -> 10515.41667 | C22: =$N$22/12 -> 10515.41667 | D22: 10515.41667 | E22: 10515.41667 | F22: 10515.41667 | G22: 10515.41667 | H22: 10515.41667 | I22: 10515.41667 | J22: 10515.41667 | K22: 10515.41667 | L22: 10515.41667 | M22: 10515.41667 | N22: =ME!N22+KA!N22+LA!N22 -> 126185
A23: Deckungsbeitrag | B23: =B16-B17 -> 34239.30045 | C23: =C16-C17 -> 23628.33278 | D23: 53707.81132 | E23: 60909.33282 | F23: 41810.30534 | G23: 51286.87023 | H23: 39225.53375 | I23: 43069.72536 | J23: 34378.87124 | K23: 72437.06017 | L23: 69271.78868 | M23: 50775.06786 | N23: =N16-N17 -> 574740
A24: Deckungsbeitrag / Stk. | B24: =B23/B3 -> 26.41128838 | C24: =C23/C3 -> 20.64238969 | D24: 34.10473594 | E24: 36.30368242 | F24: 29.76553428 | G24: 33.29947077 | H24: 28.68008289 | I24: 30.27398009 | J24: 26.47818469 | K24: 39.31198123 | L24: 38.54092311 | M24: 33.1245749 | N24: =N23/N3 -> 32.10837989

Sheet ME
B1: Januar | C1: Februar | D1: März | E1: April | F1: Mai | G1: Juni | H1: Juli | I1: August | J1: September | K1: Oktober | L1: November | M1: Dezember | N1: Gesamt
A2: Saison | B2: 0.059 | C2: 0.0651 | D2: 0.0888 | E2: 0.1115 | F2: 0.0919 | G2: 0.0886 | H2: 0.0717 | I2: 0.0788 | J2: 0.0709 | K2: 0.0986 | L2: 0.1079 | M2: 0.0674 | N2: =SUM(B2:M2) -> 1.0002
A3: verk. Stunden | B3: =$N$3*B2 -> 790.6 | C3: =$N$3*C2 -> 872.34 | D3: 1189.92 | E3: 1494.1 | F3: 1231.46 | G3: 1187.24 | H3: 960.78 | I3: 1055.92 | J3: 950.06 | K3: 1321.24 | L3: 1445.86 | M3: 903.16 | N3: 13400
A4: Umsatzerlöse | B4: =$N$4*B2 -> 57318.5 | C4: =$N$4*C2 -> 63244.65 | D4: 86269.2 | E4: 108322.25 | F4: 89280.85 | G4: 86074.9 | H4: 69656.55 | I4: 76554.2 | J4: 68879.35 | K4: 95789.9 | L4: 104824.85 | M4: 65479.1 | N4: =N3*N5 -> 971500
A5: Umsatz / Stk. | B5: =$N$5 -> 72.5 | C5: =$N$5 -> 72.5 | D5: 72.5 | E5: 72.5 | F5: 72.5 | G5: 72.5 | H5: 72.5 | I5: 72.5 | J5: 72.5 | K5: 72.5 | L5: 72.5 | M5: 72.5 | N5: 72.5
A6: Einsatzwerte | B6: =$N$6*B2 -> 12610.07 | C6: =$N$6*C2 -> 13913.823 | D6: 18979.224 | E6: 23830.895 | F6: 19641.787 | G6: 18936.478 | H6: 15324.441 | I6: 16841.924 | J6: 15153.457 | K6: 21073.778 | L6: 23061.467 | M6: 14405.402 | N6: =(N4*O6) -> 213730 | O6: 0.22 | P6: (EW!!)
A7: Bruttoertrag | B7: =$N$7*B2 -> 44708.43 | C7: =$N$7*C2 -> 49330.827 | D7: 67289.976 | E7: 84491.355 | F7: 69639.063 | G7: 67138.422 | H7: 54332.109 | I7: 59712.276 | J7: 53725.893 | K7: 74716.122 | L7: 81763.383 | M7: 51073.698 | N7: =N4-N6 -> 757770
A8: Bruttoertrag / Stk. | B8: =$N$8 -> 56.55 | C8: =$N$8 -> 56.55 | D8: 56.55 | E8: 56.55 | F8: 56.55 | G8: 56.55 | H8: 56.55 | I8: 56.55 | J8: 56.55 | K8: 56.55 | L8: 56.55 | M8: 56.55 | N8: =N7/N3 -> 56.55
A10: Variable Kosten | B10: =$N$10*B2 -> 1180 | C10: =$N$10*C2 -> 1302 | D10: 1776 | E10: 2230 | F10: 1838 | G10: 1772 | H10: 1434 | I10: 1576 | J10: 1418 | K10: 1972 | L10: 2158 | M10: 1348 | N10: 20000
A11: Fixum/Prov./Soz. | B11: =$N$11*B2 -> 0 | C11: =$N$11*C2 -> 0 | D11: 0 | E11: 0 | F11: 0 | G11: 0 | H11: 0 | I11: 0 | J11: 0 | K11: 0 | L11: 0 | M11: 0 | N11: =N10*O11 -> 0 | O11: 0 | P11: =SUM(O11:O15) -> 1
A12: Provisionen | B12: =$N$12*B2 -> 0 | C12: =$N$12*C2 -> 0 | D12: 0 | E12: 0 | F12: 0 | G12: 0 | H12: 0 | I12: 0 | J12: 0 | K12: 0 | L12: 0 | M12: 0 | N12: =N10*O12 -> 0 | O12: 0
A13: Fertigmachen | B13: =$N$13*B2 -> 0 | C13: =$N$13*C2 -> 0 | D13: 0 | E13: 0 | F13: 0 | G13: 0 | H13: 0 | I13: 0 | J13: 0 | K13: 0 | L13: 0 | M13: 0 | N13: =N10*O13 -> 0 | O13: 0
A14: Kulanz | B14: =$N$14*B2 -> 1180 | C14: =$N$14*C2 -> 1302 | D14: 1776 | E14: 2230 | F14: 1838 | G14: 1772 | H14: 1434 | I14: 1576 | J14: 1418 | K14: 1972 | L14: 2158 | M14: 1348 | N14: =N10*O14 -> 20000 | O14: 1
A15: sonst. variable Kosten | B15: =$N$15*B2 -> 0 | C15: =$N$15*C2 -> 0 | D15: 0 | E15: 0 | F15: 0 | G15: 0 | H15: 0 | I15: 0 | J15: 0 | K15: 0 | L15: 0 | M15: 0 | N15: =N10*O15 -> 0 | O15: 0
A16: Bruttoertrag II | B16: =$N$16*B2 -> 43528.43 | C16: =$N$16*C2 -> 48028.827 | D16: 65513.976 | E16: 82261.355 | F16: 67801.063 | G16: 65366.422 | H16: 52898.109 | I16: 58136.276 | J16: 52307.893 | K16: 72744.122 | L16: 79605.383 | M16: 49725.698 | N16: =N7-N10 -> 737770 | O16: =N16/N4 -> 0.7594132784 | P16: Ziel > 65%
A17: Direkte Kosten | B17: =$N$17/12 -> 42500 | C17: 42500 | D17: 42500 | E17: 42500 | F17: 42500 | G17: 42500 | H17: 42500 | I17: 42500 | J17: 42500 | K17: 42500 | L17: 42500 | M17: =$N$17/12 -> 42500 | N17: 510000
A18: Personalkosten | B18: =$N$18/12 -> 35275 | C18: 35275 | D18: 35275 | E18: 35275 | F18: 35275 | G18: 35275 | H18: 35275 | I18: 35275 | J18: 35275 | K18: 35275 | L18: 35275 | M18: =$N$18/12 -> 35275 | N18: =$N$17*O18 -> 423300 | O18: 0.83 | P18: =SUM(O18:O22) -> 1
A19: Werbekosten | B19: =$N$19/12 -> 425 | C19: 425 | D19: 425 | E19: 425 | F19: 425 | G19: 425 | H19: 425 | I19: 425 | J19: 425 | K19: 425 | L19: 425 | M19: =$N$19/12 -> 425 | N19: =$N$17*O19 -> 5100 | O19: 0.01
A20: Fahrzeugkosten | B20: =$N$20/12 -> 850 | C20: 850 | D20: 850 | E20: 850 | F20: 850 | G20: 850 | H20: 850 | I20: 850 | J20: 850 | K20: 850 | L20: 850 | M20: =$N$20/12 -> 850 | N20: 10200 | O20: 0.02
A21: Abschreibungen | B21: =$N$21/12 -> 0 | C21: 0 | D21: 0 | E21: 0 | F21: 0 | G21: 0 | H21: 0 | I21: 0 | J21: 0 | K21: 0 | L21: 0 | M21: =$N$21/12 -> 0 | N21: 0 | O21: 0
A22: Gemeinkosten | B22: =$N$22/12 -> 5950 | C22: 5950 | D22: 5950 | E22: 5950 | F22: 5950 | G22: 5950 | H22: 5950 | I22: 5950 | J22: 5950 | K22: 5950 | L22: 5950 | M22: =$N$22/12 -> 5950 | N22: 71400 | O22: 0.14
A23: Deckungsbeitrag | B23: =B16-B17 -> 1028.43 | C23: =C16-C17 -> 5528.827 | D23: 23013.976 | E23: 39761.355 | F23: 25301.063 | G23: 22866.422 | H23: 10398.109 | I23: 15636.276 | J23: 9807.893 | K23: 30244.122 | L23: 37105.383 | M23: 7225.698 | N23: =N16-N17 -> 227770
A24: Deckungsbeitrag / Stk. | B24: =$N$24 -> 16.99776119 | C24: =$N$24 -> 16.99776119 | D24: 16.99776119 | E24: 16.99776119 | F24: 16.99776119 | G24: 16.99776119 | H24: 16.99776119 | I24: 16.99776119 | J24: 16.99776119 | K24: 16.99776119 | L24: 16.99776119 | M24: 16.99776119 | N24: =N23/N3 -> 16.99776119

Sheet KA
B1: Januar | C1: Februar | D1: März | E1: April | F1: Mai | G1: Juni | H1: Juli | I1: August | J1: September | K1: Oktober | L1: November | M1: Dezember | N1: Gesamt
A2: Saison | B2: 0.089 | C2: 0.0661 | D2: 0.0781 | E2: 0.0709 | F2: 0.0766 | G2: 0.0661 | H2: 0.0814 | I2: 0.1134 | J2: 0.1128 | K2: 0.0899 | L2: 0.0683 | M2: 0.0874 | N2: =SUM(B2:M2) -> 1
A3: verk. Stunden | B3: =$N$3*B2 -> 204.7 | C3: =$N$3*C2 -> 152.03 | D3: 179.63 | E3: 163.07 | F3: 176.18 | G3: 152.03 | H3: 187.22 | I3: 260.82 | J3: 259.44 | K3: 206.77 | L3: 157.09 | M3: 201.02 | N3: 2300
A4: Umsatzerlöse | B4: =$N$4*B2 -> 25178.1 | C4: =$N$4*C2 -> 18699.69 | D4: 22094.49 | E4: 20057.61 | F4: 21670.14 | G4: 18699.69 | H4: 23028.06 | I4: 32080.86 | J4: 31911.12 | K4: 25432.71 | L4: 19322.07 | M4: 24725.46 | N4: =N3*N5 -> 282900
A5: Umsatz / Stk. | B5: =$N$5 -> 123 | C5: =$N$5 -> 123 | D5: 123 | E5: 123 | F5: 123 | G5: 123 | H5: 123 | I5: 123 | J5: 123 | K5: 123 | L5: 123 | M5: 123 | N5: 123
A6: Einsatzwerte | B6: =$N$6*B2 -> 5539.182 | C6: =$N$6*C2 -> 4113.9318 | D6: 4860.7878 | E6: 4412.6742 | F6: 4767.4308 | G6: 4113.9318 | H6: 5066.1732 | I6: 7057.7892 | J6: 7020.4464 | K6: 5595.1962 | L6: 4250.8554 | M6: 5439.6012 | N6: =N4*O6 -> 62238 | O6: 0.22 | P6: (EW!!!)
A7: Bruttoertrag | B7: =$N$7*B2 -> 19638.918 | C7: =$N$7*C2 -> 14585.7582 | D7: 17233.7022 | E7: 15644.9358 | F7: 16902.7092 | G7: 14585.7582 | H7: 17961.8868 | I7: 25023.0708 | J7: 24890.6736 | K7: 19837.5138 | L7: 15071.2146 | M7: 19285.8588 | N7: =N4-N6 -> 220662
A8: Bruttoertrag / Stk. | B8: =$N$8 -> 95.94 | C8: =$N$8 -> 95.94 | D8: 95.94 | E8: 95.94 | F8: 95.94 | G8: 95.94 | H8: 95.94 | I8: 95.94 | J8: 95.94 | K8: 95.94 | L8: 95.94 | M8: 95.94 | N8: =N7/N3 -> 95.94
A10: Variable Kosten | B10: =$N$10*B2 -> 178 | C10: =$N$10*C2 -> 132.2 | D10: 156.2 | E10: 141.8 | F10: 153.2 | G10: 132.2 | H10: 162.8 | I10: 226.8 | J10: 225.6 | K10: 179.8 | L10: 136.6 | M10: 174.8 | N10: 2000
A11: Fixum/Prov./Soz. | B11: =$N$11*B2 -> 0 | C11: =$N$11*C2 -> 0 | D11: 0 | E11: 0 | F11: 0 | G11: 0 | H11: 0 | I11: 0 | J11: 0 | K11: 0 | L11: 0 | M11: 0 | N11: =N10*O11 -> 0 | O11: 0 | P11: =SUM(O11:O15) -> 1
A12: Provisionen | B12: =$N$12*B2 -> 0 | C12: =$N$12*C2 -> 0 | D12: 0 | E12: 0 | F12: 0 | G12: 0 | H12: 0 | I12: 0 | J12: 0 | K12: 0 | L12: 0 | M12: 0 | N12: =N10*O12 -> 0 | O12: 0
A13: Fertigmachen | B13: =$N$13*B2 -> 0 | C13: =$N$13*C2 -> 0 | D13: 0 | E13: 0 | F13: 0 | G13: 0 | H13: 0 | I13: 0 | J13: 0 | K13: 0 | L13: 0 | M13: 0 | N13: =N10*O13 -> 0 | O13: 0
A14: Kulanz | B14: =$N$14*B2 -> 178 | C14: =$N$14*C2 -> 132.2 | D14: 156.2 | E14: 141.8 | F14: 153.2 | G14: 132.2 | H14: 162.8 | I14: 226.8 | J14: 225.6 | K14: 179.8 | L14: 136.6 | M14: 174.8 | N14: =N10*O14 -> 2000 | O14: 1
A15: sonst. variable Kosten | B15: =$N$15*B2 -> 0 | C15: =$N$15*C2 -> 0 | D15: 0 | E15: 0 | F15: 0 | G15: 0 | H15: 0 | I15: 0 | J15: 0 | K15: 0 | L15: 0 | M15: 0 | N15: =N10*O15 -> 0 | O15: 0
A16: Bruttoertrag II | B16: =$N$16*B2 -> 19460.918 | C16: =$N$16*C2 -> 14453.5582 | D16: 17077.5022 | E16: 15503.1358 | F16: 16749.5092 | G16: 14453.5582 | H16: 17799.0868 | I16: 24796.2708 | J16: 24665.0736 | K16: 19657.7138 | L16: 14934.6146 | M16: 19111.0588 | N16: =N7-N10 -> 218662
A17: Direkte Kosten | B17: =$N$17/12 -> 4333.333333 | C17: =$N$17/12 -> 4333.333333 | D17: 4333.333333 | E17: 4333.333333 | F17: 4333.333333 | G17: 4333.333333 | H17: 4333.333333 | I17: 4333.333333 | J17: 4333.333333 | K17: 4333.333333 | L17: 4333.333333 | M17: 4333.333333 | N17: 52000
A18: Personalkosten | B18: =$N$18/12 -> 3553.333333 | C18: =$N$18/12 -> 3553.333333 | D18: 3553.333333 | E18: 3553.333333 | F18: 3553.333333 | G18: 3553.333333 | H18: 3553.333333 | I18: 3553.333333 | J18: 3553.333333 | K18: 3553.333333 | L18: 3553.333333 | M18: 3553.333333 | N18: =$N$17*O18 -> 42640 | O18: 0.82 | P18: =SUM(O18:O22) -> 1
A19: Werbekosten | B19: =$N$19/12 -> 0 | C19: =$N$19/12 -> 0 | D19: 0 | E19: 0 | F19: 0 | G19: 0 | H19: 0 | I19: 0 | J19: 0 | K19: 0 | L19: 0 | M19: 0 | N19: =$N$17*O19 -> 0 | O19: 0
A20: Fahrzeugkosten | B20: =$N$20/12 -> 0 | C20: =$N$20/12 -> 0 | D20: 0 | E20: 0 | F20: 0 | G20: 0 | H20: 0 | I20: 0 | J20: 0 | K20: 0 | L20: 0 | M20: 0 | N20: 0 | O20: 0
A21: Abschreibungen | B21: =$N$21/12 -> 0 | C21: =$N$21/12 -> 0 | D21: 0 | E21: 0 | F21: 0 | G21: 0 | H21: 0 | I21: 0 | J21: 0 | K21: 0 | L21: 0 | M21: 0 | N21: 0 | O21: 0
A22: Gemeinkosten | B22: =$N$22/12 -> 780 | C22: =$N$22/12 -> 780 | D22: 780 | E22: 780 | F22: 780 | G22: 780 | H22: 780 | I22: 780 | J22: 780 | K22: 780 | L22: 780 | M22: 780 | N22: 9360 | O22: 0.18
A23: Deckungsbeitrag | B23: =B16-B17 -> 15127.58467 | C23: =C16-C17 -> 10120.22487 | D23: 12744.16887 | E23: 11169.80247 | F23: 12416.17587 | G23: 10120.22487 | H23: 13465.75347 | I23: 20462.93747 | J23: 20331.74027 | K23: 15324.38047 | L23: 10601.28127 | M23: 14777.72547 | N23: =N16-N17 -> 166662
A24: Deckungsbeitrag / Stk. | B24: =$N$24 -> 72.46173913 | C24: =$N$24 -> 72.46173913 | D24: 72.46173913 | E24: 72.46173913 | F24: 72.46173913 | G24: 72.46173913 | H24: 72.46173913 | I24: 72.46173913 | J24: 72.46173913 | K24: 72.46173913 | L24: 72.46173913 | M24: 72.46173913 | N24: =N23/N3 -> 72.46173913

Sheet LA
B1: Januar | C1: Februar | D1: März | E1: April | F1: Mai | G1: Juni | H1: Juli | I1: August | J1: September | K1: Oktober | L1: November | M1: Dezember | N1: Gesamt
A2: Saison | B2: 0.0765 | C2: 0.0735 | D2: 0.0855 | E2: 0.0747 | F2: 0.0777 | G2: 0.0865 | H2: 0.0848 | I2: 0.0941 | J2: 0.091 | K2: 0.0765 | L2: 0.0851 | M2: 0.0944 | N2: =SUM(B2:M2) -> 1.0003
A3: verk. Stunden | B3: =$N$3*B2 -> 168.3 | C3: =$N$3*C2 -> 161.7 | D3: 188.1 | E3: 164.34 | F3: 170.94 | G3: 190.3 | H3: 186.56 | I3: 207.02 | J3: 200.2 | K3: 168.3 | L3: 187.22 | M3: 207.68 | N3: 2200
A4: Umsatzerlöse | B4: =$N$4*B2 -> 37362.6 | C4: =$N$4*C2 -> 35897.4 | D4: 41758.2 | E4: 36483.48 | F4: 37948.68 | G4: 42246.6 | H4: 41416.32 | I4: 45958.44 | J4: 44444.4 | K4: 37362.6 | L4: 41562.84 | M4: 46104.96 | N4: =N3*N5 -> 488400
A5: Umsatz / Stk. | B5: =$N$5 -> 222 | C5: =$N$5 -> 222 | D5: 222 | E5: 222 | F5: 222 | G5: 222 | H5: 222 | I5: 222 | J5: 222 | K5: 222 | L5: 222 | M5: =$N$5 -> 222 | N5: 222
A6: Einsatzwerte | B6: =$N$6*B2 -> 14197.788 | C6: =$N$6*C2 -> 13641.012 | D6: 15868.116 | E6: 13863.7224 | F6: 14420.4984 | G6: 16053.708 | H6: 15738.2016 | I6: 17464.2072 | J6: 16888.872 | K6: 14197.788 | L6: 15793.8792 | M6: 17519.8848 | N6: =N4*O6 -> 185592 | O6: 0.38 | P6: (EW!!!)
A7: Bruttoertrag | B7: =$N$7*B2 -> 23164.812 | C7: =$N$7*C2 -> 22256.388 | D7: 25890.084 | E7: 22619.7576 | F7: 23528.1816 | G7: 26192.892 | H7: 25678.1184 | I7: 28494.2328 | J7: 27555.528 | K7: 23164.812 | L7: 25768.9608 | M7: 28585.0752 | N7: =N4-N6 -> 302808
A8: Bruttoertrag / Stk. | B8: =B7/B3 -> 137.64 | C8: 137.64 | D8: 137.64 | E8: 137.64 | F8: 137.64 | G8: 137.64 | H8: 137.64 | I8: 137.64 | J8: 137.64 | K8: 137.64 | L8: 137.64 | M8: 137.64 | N8: =N7/N3 -> 137.64
A10: Variable Kosten | B10: =$N$10*B2 -> 573.75 | C10: =$N$10*C2 -> 551.25 | D10: 641.25 | E10: 560.25 | F10: 582.75 | G10: 648.75 | H10: 636 | I10: 705.75 | J10: 682.5 | K10: 573.75 | L10: 638.25 | M10: 708 | N10: 7500
A11: Fixum/Prov./Soz. | B11: =$N$11*B2 -> 0 | C11: =$N$11*C2 -> 0 | D11: 0 | E11: 0 | F11: 0 | G11: 0 | H11: 0 | I11: 0 | J11: 0 | K11: 0 | L11: 0 | M11: 0 | N11: =N10*O11 -> 0 | O11: 0 | P11: =SUM(O11:O15) -> 1
A12: Provisionen | B12: =$N$12*B2 -> 0 | C12: =$N$12*C2 -> 0 | D12: 0 | E12: 0 | F12: 0 | G12: 0 | H12: 0 | I12: 0 | J12: 0 | K12: 0 | L12: 0 | M12: 0 | N12: =N10*O12 -> 0 | O12: 0
A13: Fertigmachen | B13: =$N$13*B2 -> 0 | C13: =$N$13*C2 -> 0 | D13: 0 | E13: 0 | F13: 0 | G13: 0 | H13: 0 | I13: 0 | J13: 0 | K13: 0 | L13: 0 | M13: 0 | N13: =N10*O13 -> 0 | O13: 0
A14: Kulanz | B14: =$N$14*B2 -> 573.75 | C14: =$N$14*C2 -> 551.25 | D14: 641.25 | E14: 560.25 | F14: 582.75 | G14: 648.75 | H14: 636 | I14: 705.75 | J14: 682.5 | K14: 573.75 | L14: 638.25 | M14: 708 | N14: =N10*O14 -> 7500 | O14: 1
A15: sonst. variable Kosten | B15: =$N$15*B2 -> 0 | C15: =$N$15*C2 -> 0 | D15: 0 | E15: 0 | F15: 0 | G15: 0 | H15: 0 | I15: 0 | J15: 0 | K15: 0 | L15: 0 | M15: 0 | N15: =N10*O15 -> 0 | O15: 0
A16: Bruttoertrag II | B16: =$N$16*B2 -> 22591.062 | C16: =$N$16*C2 -> 21705.138 | D16: 25248.834 | E16: 22059.5076 | F16: 22945.4316 | G16: 25544.142 | H16: 25042.1184 | I16: 27788.4828 | J16: 26873.028 | K16: 22591.062 | L16: 25130.7108 | M16: 27877.0752 | N16: =N7-N10 -> 295308
A17: Direkte Kosten | B17: =$N$17/12 -> 9583.333333 | C17: =$N$17/12 -> 9583.333333 | D17: 9583.333333 | E17: 9583.333333 | F17: 9583.333333 | G17: 9583.333333 | H17: 9583.333333 | I17: 9583.333333 | J17: 9583.333333 | K17: 9583.333333 | L17: 9583.333333 | M17: 9583.333333 | N17: 115000
A18: Personalkosten | B18: =$N$18/12 -> 5654.166667 | C18: =$N$18/12 -> 5654.166667 | D18: 5654.166667 | E18: 5654.166667 | F18: 5654.166667 | G18: 5654.166667 | H18: 5654.166667 | I18: 5654.166667 | J18: 5654.166667 | K18: 5654.166667 | L18: 5654.166667 | M18: 5654.166667 | N18: =$N$17*O18 -> 67850 | O18: 0.59 | P18: =SUM(O18:O22) -> 1
A19: Werbekosten | B19: =$N$19/12 -> 0 | C19: =$N$19/12 -> 0 | D19: 0 | E19: 0 | F19: 0 | G19: 0 | H19: 0 | I19: 0 | J19: 0 | K19: 0 | L19: 0 | M19: 0 | N19: =$N$17*O19 -> 0 | O19: 0
A20: Fahrzeugkosten | B20: =$N$20/12 -> 143.75 | C20: =$N$20/12 -> 143.75 | D20: 143.75 | E20: 143.75 | F20: 143.75 | G20: 143.75 | H20: 143.75 | I20: 143.75 | J20: 143.75 | K20: 143.75 | L20: 143.75 | M20: 143.75 | N20: 1725 | O20: 0.015
A21: Abschreibungen | B21: =$N$21/12 -> 0 | C21: =$N$21/12 -> 0 | D21: 0 | E21: 0 | F21: 0 | G21: 0 | H21: 0 | I21: 0 | J21: 0 | K21: 0 | L21: 0 | M21: 0 | N21: 0 | O21: 0
A22: Gemeinkosten | B22: =$N$22/12 -> 3785.416667 | C22: =$N$22/12 -> 3785.416667 | D22: 3785.416667 | E22: 3785.416667 | F22: 3785.416667 | G22: 3785.416667 | H22: 3785.416667 | I22: 3785.416667 | J22: 3785.416667 | K22: 3785.416667 | L22: 3785.416667 | M22: 3785.416667 | N22: 45425 | O22: 0.395
A23: Deckungsbeitrag | B23: =B16-B17 -> 13007.72867 | C23: =C16-C17 -> 12121.80467 | D23: 15665.50067 | E23: 12476.17427 | F23: 13362.09827 | G23: 15960.80867 | H23: 15458.78507 | I23: 18205.14947 | J23: 17289.69467 | K23: 13007.72867 | L23: 15547.37747 | M23: 18293.74187 | N23: =N16-N17 -> 180308
A24: Deckungsbeitrag / Stk. | B24: =B23/B3 -> 77.28894038 | C24: 74.9647784 | D24: 83.28283183 | E24: 75.91684475 | F24: 78.16835303 | G24: 83.87182694 | H24: 82.86226987 | I24: 87.93908543 | J24: 86.36211122 | K24: 77.28894038 | L24: 83.0433579 | M24: 88.08619928 | N24: =N23/N3 -> 81.95818182

Sheet T&Z
B1: Januar | C1: Februar | D1: März | E1: April | F1: Mai | G1: Juni | H1: Juli | I1: August | J1: September | K1: Oktober | L1: November | M1: Dezember | N1: Gesamt
A2: Saison | B2: 0.071 | C2: 0.0667 | D2: 0.08797711824 | E2: 0.085 | F2: 0.084 | G2: 0.0773 | H2: 0.0739 | I2: 0.0849 | J2: 0.0738 | K2: 0.0919 | L2: 0.1132 | M2: 0.0903 | N2: =SUM(B2:M2) -> 0.9999771182
A3: verk. Stunden | B3: =$N$3*B2*$O$3 -> 0 | C3: =$N$3*C2 -> 0 | D3: 0 | E3: 0 | F3: 0 | G3: 0 | H3: 0 | I3: 0 | J3: 0 | K3: 0 | L3: 0 | M3: 0 | N3: 0
A4: Umsatzerlöse | B4: =$N$4*B2 -> 128688.352 | C4: =$N$4*C2 -> 120894.5504 | D4: 159459.5825 | E4: 154063.52 | F4: 152251.008 | G4: 140107.1776 | H4: 133944.6368 | I4: 153882.2688 | J4: 133763.3856 | K4: 166569.8528 | L4: 205176.3584 | M4: 163669.8336 | N4: =(ME!N4+KA!N4+LA!N4)*S4 -> 1812512 | R4: Faktor Umsatz ME+KA+LA | S4: 1.04
A5: Einsatzwerte | B5: =$N$5*B2 -> 83647.4288 | C5: 78581.45776 | D5: 103648.7286 | E5: 100141.288 | F5: 98963.1552 | G5: 91069.66544 | H5: 87064.01392 | I5: 100023.4747 | J5: 86946.20064 | K5: 108270.4043 | L5: 133364.633 | M5: 106385.3918 | N5: =N4*(O5) -> 1178132.8 | O5: 0.65 | P5: (EW!!!)
A6: Bruttoertrag | B6: =$N$6*B2 -> 45040.9232 | C6: 42313.09264 | D6: 55810.85389 | E6: 53922.232 | F6: 53287.8528 | G6: 49037.51216 | H6: 46880.62288 | I6: 53858.79408 | J6: 46817.18496 | K6: 58299.44848 | L6: 71811.72544 | M6: 57284.44176 | N6: =N4-N5 -> 634379.2
A8: Variable Kosten | B8: =$N$8*B2 -> 1420 | C8: 1334 | D8: 1759.542365 | E8: 1700 | F8: 1680 | G8: 1546 | H8: 1478 | I8: 1698 | J8: 1476 | K8: 1838 | L8: 2264 | M8: 1806 | N8: 20000
A9: Fixum/Prov./Soz. | B9: =$N$9*B2 -> 0 | C9: 0 | D9: 0 | E9: 0 | F9: 0 | G9: 0 | H9: 0 | I9: 0 | J9: 0 | K9: 0 | L9: 0 | M9: 0 | N9: =N8*O9 -> 0 | O9: 0 | P9: =SUM(O9:O13) -> 1
A10: Provisionen | B10: =$N$10*B2 -> 0 | C10: 0 | D10: 0 | E10: 0 | F10: 0 | G10: 0 | H10: 0 | I10: 0 | J10: 0 | K10: 0 | L10: 0 | M10: 0 | N10: =N8*O10 -> 0 | O10: 0
A11: Fertigmachen | B11: =$N$11*B2 -> 0 | C11: 0 | D11: 0 | E11: 0 | F11: 0 | G11: 0 | H11: 0 | I11: 0 | J11: 0 | K11: 0 | L11: 0 | M11: 0 | N11: =N8*O11 -> 0 | O11: 0
A12: Kulanz | B12: =$N$12*B2 -> 1420 | C12: 1334 | D12: 1759.542365 | E12: 1700 | F12: 1680 | G12: 1546 | H12: 1478 | I12: 1698 | J12: 1476 | K12: 1838 | L12: 2264 | M12: 1806 | N12: =N8*O12 -> 20000 | O12: 1
A13: sonst. variable Kosten | B13: =$N$13*B2 -> 0 | C13: 0 | D13: 0 | E13: 0 | F13: 0 | G13: 0 | H13: 0 | I13: 0 | J13: 0 | K13: 0 | L13: 0 | M13: 0 | N13: =N8*O13 -> 0 | O13: 0
A14: Bruttoertrag II | B14: =$N$14*B2 -> 43620.9232 | C14: 40979.09264 | D14: 54051.31152 | E14: 52222.232 | F14: 51607.8528 | G14: 47491.51216 | H14: 45402.62288 | I14: 52160.79408 | J14: 45341.18496 | K14: 56461.44848 | L14: 69547.72544 | M14: 55478.44176 | N14: =N6-N8 -> 614379.2
A15: Direkte Kosten | B15: =$N$15/12 -> 19583.33333 | C15: =$N$15/12 -> 19583.33333 | D15: 19583.33333 | E15: 19583.33333 | F15: 19583.33333 | G15: 19583.33333 | H15: 19583.33333 | I15: 19583.33333 | J15: 19583.33333 | K15: 19583.33333 | L15: 19583.33333 | M15: 19583.33333 | N15: 235000
A16: Personalkosten | B16: =$N$16/12 -> 18848.95833 | C16: =$N$16/12 -> 18848.95833 | D16: 18848.95833 | E16: 18848.95833 | F16: 18848.95833 | G16: 18848.95833 | H16: 18848.95833 | I16: 18848.95833 | J16: 18848.95833 | K16: 18848.95833 | L16: 18848.95833 | M16: 18848.95833 | N16: =$N$15*O16 -> 226187.5 | O16: 0.9625 | P16: =SUM(O16:O20) -> 1
A17: Werbekosten | B17: =$N$17/12 -> 48.95833333 | C17: =$N$17/12 -> 48.95833333 | D17: 48.95833333 | E17: 48.95833333 | F17: 48.95833333 | G17: 48.95833333 | H17: 48.95833333 | I17: 48.95833333 | J17: 48.95833333 | K17: 48.95833333 | L17: 48.95833333 | M17: 48.95833333 | N17: =$N$15*O17 -> 587.5 | O17: 0.0025
A18: Fahrzeugkosten | B18: =$N$18/12 -> 195.8333333 | C18: =$N$18/12 -> 195.8333333 | D18: 195.8333333 | E18: 195.8333333 | F18: 195.8333333 | G18: 195.8333333 | H18: 195.8333333 | I18: 195.8333333 | J18: 195.8333333 | K18: 195.8333333 | L18: 195.8333333 | M18: 195.8333333 | N18: 2350 | O18: 0.01
A19: Abschreibungen | B19: =$N$19/12 -> 0 | C19: =$N$19/12 -> 0 | D19: 0 | E19: 0 | F19: 0 | G19: 0 | H19: 0 | I19: 0 | J19: 0 | K19: 0 | L19: 0 | M19: 0 | N19: 0 | O19: 0
A20: Gemeinkosten | B20: =$N$20/12 -> 489.5833333 | C20: =$N$20/12 -> 489.5833333 | D20: 489.5833333 | E20: 489.5833333 | F20: 489.5833333 | G20: 489.5833333 | H20: 489.5833333 | I20: 489.5833333 | J20: 489.5833333 | K20: 489.5833333 | L20: 489.5833333 | M20: 489.5833333 | N20: 5875 | O20: 0.025
A21: Deckungsbeitrag | B21: =B14-B15 -> 24037.58987 | C21: =C14-C15 -> 21395.75931 | D21: 34467.97819 | E21: 32638.89867 | F21: 32024.51947 | G21: 27908.17883 | H21: 25819.28955 | I21: 32577.46075 | J21: 25757.85163 | K21: 36878.11515 | L21: 49964.39211 | M21: 35895.10843 | N21: =N14-N15 -> 379379.2

Sheet MW
B1: Januar | C1: Februar | D1: März | E1: April | F1: Mai | G1: Juni | H1: Juli | I1: August | J1: September | K1: Oktober | L1: November | M1: Dezember | N1: Gesamt
A2: Saison | B2: 0.0786 | C2: 0.0753 | D2: 0.0994 | E2: 0.0679 | F2: 0.0884 | G2: 0.093 | H2: 0.0797 | I2: 0.0794 | J2: 0.075 | K2: 0.0728 | L2: 0.0891 | M2: 0.1014 | N2: =SUM(B2:M2) -> 1
A3: Umsatzerlöse | B3: =$N$3*B2 -> 7860 | C3: 7530 | D3: 9940 | E3: 6790 | F3: 8840 | G3: 9300 | H3: 7970 | I3: 7940 | J3: 7500 | K3: 7280 | L3: 8910 | M3: 10140 | N3: 100000
A4: Einsatzwerte | B4: =$N$4*B2 -> 0 | C4: 0 | D4: 0 | E4: 0 | F4: 0 | G4: 0 | H4: 0 | I4: 0 | J4: 0 | K4: 0 | L4: 0 | M4: 0 | N4: 0 | O4: =N4/N3 -> 0
A5: Bruttoertrag | B5: =$N$5*B2 -> 7860 | C5: 7530 | D5: 9940 | E5: 6790 | F5: 8840 | G5: 9300 | H5: 7970 | I5: 7940 | J5: 7500 | K5: 7280 | L5: 8910 | M5: 10140 | N5: =N3-N4 -> 100000
A7: Variable Kosten | B7: =$N$7*B2 -> 0 | C7: 0 | D7: 0 | E7: 0 | F7: 0 | G7: 0 | H7: 0 | I7: 0 | J7: 0 | K7: 0 | L7: 0 | M7: 0 | N7: 0
A8: Fixum/Prov./Soz. | B8: =$N$8*B2 -> 0 | C8: 0 | D8: 0 | E8: 0 | F8: 0 | G8: 0 | H8: 0 | I8: 0 | J8: 0 | K8: 0 | L8: 0 | M8: 0 | N8: =N7*O8 -> 0 | O8: 0 | P8: =SUM(O8:O12) -> 1
A9: Provisionen | B9: =$N$9*B2 -> 0 | C9: 0 | D9: 0 | E9: 0 | F9: 0 | G9: 0 | H9: 0 | I9: 0 | J9: 0 | K9: 0 | L9: 0 | M9: 0 | N9: =N7*O9 -> 0 | O9: 0
A10: Fertigmachen | B10: =$N$10*B2 -> 0 | C10: 0 | D10: 0 | E10: 0 | F10: 0 | G10: 0 | H10: 0 | I10: 0 | J10: 0 | K10: 0 | L10: 0 | M10: 0 | N10: =N7*O10 -> 0 | O10: 0
A11: Kulanz | B11: =$N$11*B2 -> 0 | C11: 0 | D11: 0 | E11: 0 | F11: 0 | G11: 0 | H11: 0 | I11: 0 | J11: 0 | K11: 0 | L11: 0 | M11: 0 | N11: =N7*O11 -> 0 | O11: 1
A12: sonst. variable Kosten | B12: =$N$12*B2 -> 0 | C12: 0 | D12: 0 | E12: 0 | F12: 0 | G12: 0 | H12: 0 | I12: 0 | J12: 0 | K12: 0 | L12: 0 | M12: 0 | N12: =N7*O12 -> 0 | O12: 0
A13: Bruttoertrag II | B13: =$N$13*B2 -> 7860 | C13: 7530 | D13: 9940 | E13: 6790 | F13: 8840 | G13: 9300 | H13: 7970 | I13: 7940 | J13: 7500 | K13: 7280 | L13: 8910 | M13: 10140 | N13: =N5-N7 -> 100000
A14: Direkte Kosten | B14: =$N$14/12 -> 6083.333333 | C14: =$N$14/12 -> 6083.333333 | D14: 6083.333333 | E14: 6083.333333 | F14: 6083.333333 | G14: 6083.333333 | H14: 6083.333333 | I14: 6083.333333 | J14: 6083.333333 | K14: 6083.333333 | L14: 6083.333333 | M14: 6083.333333 | N14: 73000
A15: Personalkosten | B15: =$N$15/12 -> 243.3333333 | C15: =$N$15/12 -> 243.3333333 | D15: 243.3333333 | E15: 243.3333333 | F15: 243.3333333 | G15: 243.3333333 | H15: 243.3333333 | I15: 243.3333333 | J15: 243.3333333 | K15: 243.3333333 | L15: 243.3333333 | M15: 243.3333333 | N15: =$N$14*O15 -> 2920 | O15: 0.04 | P15: =SUM(O15:O19) -> 0.98
A16: Werbekosten | B16: =$N$16/12 -> 6.083333333 | C16: =$N$16/12 -> 6.083333333 | D16: 6.083333333 | E16: 6.083333333 | F16: 6.083333333 | G16: 6.083333333 | H16: 6.083333333 | I16: 6.083333333 | J16: 6.083333333 | K16: 6.083333333 | L16: 6.083333333 | M16: 6.083333333 | N16: =$N$14*O16 -> 73 | O16: 0.001
A17: Fahrzeugkosten | B17: =$N$17/12 -> 1825 | C17: =$N$17/12 -> 1825 | D17: 1825 | E17: 1825 | F17: 1825 | G17: 1825 | H17: 1825 | I17: 1825 | J17: 1825 | K17: 1825 | L17: 1825 | M17: 1825 | N17: 21900 | O17: 0.3
A18: Abschreibungen | B18: =$N$18/12 -> 3887.25 | C18: =$N$18/12 -> 3887.25 | D18: 3887.25 | E18: 3887.25 | F18: 3887.25 | G18: 3887.25 | H18: 3887.25 | I18: 3887.25 | J18: 3887.25 | K18: 3887.25 | L18: 3887.25 | M18: 3887.25 | N18: 46647 | O18: 0.639
A19: Gemeinkosten | B19: =$N$19/12 -> 0 | C19: =$N$19/12 -> 0 | D19: 0 | E19: 0 | F19: 0 | G19: 0 | H19: 0 | I19: 0 | J19: 0 | K19: 0 | L19: 0 | M19: 0 | N19: 0 | O19: 0
A20: Deckungsbeitrag | B20: =B13-B14 -> 1776.666667 | C20: =C13-C14 -> 1446.666667 | D20: 3856.666667 | E20: 706.6666667 | F20: 2756.666667 | G20: 3216.666667 | H20: 1886.666667 | I20: 1856.666667 | J20: 1416.666667 | K20: 1196.666667 | L20: 2826.666667 | M20: 4056.666667 | N20: =N13-N14 -> 27000

Sheet ---
B1: 2015
A2: Neuwagen Stk. | B2: 306
A3: Gebrauchtwagen Stk. | B3: 606
A4: Service AW gesamt | B4: 11325
A5: Umsatzerlöse | B5: 11519122
A6: Einsatzwerte | B6: 9474183
A7: Bruttoertrag | B7: 2044939
A8: Variable Kosten | B8: 285820
A9: Fixum/Prov./Soz. | B9: 179615
A10: Provisionen | B10: 13635
A11: Fertigmachen | B11: 6546
A12: Kulanz | B12: 45336
A13: sonst. variable Kosten | B13: 40689
A14: Bruttoertrag II | B14: 1759119
A15: Direkte Kosten | B15: 959551
A16: Personalkosten | B16: 633343
A17: Werbekosten | B17: 99873
A18: Fahrzeugkosten | B18: 96610
A19: Abschreibungen | B19: 112436
A20: Gemeinkosten | B20: 17289
A21: Deckungsbeitrag | B21: 799568
A22: Indirekte Kosten | B22: 989126
A23: Personalkosten | B23: 301363
A24: Werbekosten | B24: 79480
A25: Fahrzeugkosten | B25: 13295
A26: Abschreibungen | B26: 15165
A27: Gemeinkosten | B27: 269217
A28: Raumkosten | B28: 195634
A29: Kalk. Kosten | B29: 114972
A30: Betriebsergebnis | B30: -189558
A31: Neutrales Ergebnis | B31: 12107
A32: Unternehmenserg. | B32: -177451

Sheet Planung_2019
A1: Rechtseinheit | B1: Betrieb | C1: Bookkeep Date | D1: Kostenstelle | E1: Ebene1 | F1: Ebene2 | G1: Ebene3 | H1: Marke | I1: Wert1 | J1: Wert2 | K1: Wert3 | L1: Wert4 | M1: Wert5 | N1: Wert6 | O1: Wert7 | P1: Wert8 | Q1: Wert9 | R1: Wert10 | S1: Wert11 | T1: Wert12
A2: 1 | B2: 01 | C2: 2019 | D2: 1 | E2: verkaufte Stückzahlen | F2: VE Neuwagen | H2: 1 | I2: =NW!B3 -> 30.84 | J2: =NW!C3 -> 28.64 | K2: =NW!D3 -> 35.76 | L2: =NW!E3 -> 27.24 | M2: =NW!F3 -> 38.88 | N2: =NW!G3 -> 41.48 | O2: =NW!H3 -> 28.16 | P2: =NW!I3 -> 31.24 | Q2: =NW!J3 -> 29.88 | R2: =NW!K3 -> 38.28 | S2: =NW!L3 -> 36.88 | T2: =NW!M3 -> 32.72
A3: 1 | B3: 01 | C3: 2019 | D3: 1 | E3: Umsatzerlöse | F3: VE Neuwagen | H3: 1 | I3: =NW!B4*-1 -> -524280 | J3: =NW!C4*-1 -> -486880 | K3: =NW!D4*-1 -> -607920 | L3: =NW!E4*-1 -> -463080 | M3: =NW!F4*-1 -> -660960 | N3: =NW!G4*-1 -> -705160 | O3: =NW!H4*-1 -> -478720 | P3: =NW!I4*-1 -> -531080 | Q3: =NW!J4*-1 -> -507960 | R3: =NW!K4*-1 -> -650760 | S3: =NW!L4*-1 -> -626960 | T3: =NW!M4*-1 -> -556240
A4: 1 | B4: 01 | C4: 2019 | D4: 1 | E4: Einsatzwerte | F4: EW Neuwagen | H4: 1 | I4: =NW!B6 -> 482337.6 | J4: =NW!C6 -> 447929.6 | K4: =NW!D6 -> 559286.4 | L4: =NW!E6 -> 426033.6 | M4: =NW!F6 -> 608083.2 | N4: =NW!G6 -> 648747.2 | O4: =NW!H6 -> 440422.4 | P4: =NW!I6 -> 488593.6 | Q4: =NW!J6 -> 467323.2 | R4: =NW!K6 -> 598699.2 | S4: =NW!L6 -> 576803.2 | T4: =NW!M6 -> 511740.8
A5: 1 | B5: 01 | C5: 2019 | D5: 1 | E5: Kosten | F5: Variable Kosten | G5: Fixum/Prov./Soz. | H5: 1 | I5: =NW!B11 -> 9122.472 | J5: =NW!C11 -> 8471.712 | K5: =NW!D11 -> 10577.808 | L5: =NW!E11 -> 8057.592 | M5: =NW!F11 -> 11500.704 | N5: =NW!G11 -> 12269.784 | O5: =NW!H11 -> 8329.728 | P5: =NW!I11 -> 9240.792 | Q5: =NW!J11 -> 8838.504 | R5: =NW!K11 -> 11323.224 | S5: =NW!L11 -> 10909.104 | T5: =NW!M11 -> 9678.576
A6: 1 | B6: 01 | C6: 2019 | D6: 1 | E6: Kosten | F6: Variable Kosten | G6: Provisionen | H6: 1 | I6: =NW!B12 -> 471.852 | J6: =NW!C12 -> 438.192 | K6: =NW!D12 -> 547.128 | L6: =NW!E12 -> 416.772 | M6: =NW!F12 -> 594.864 | N6: =NW!G12 -> 634.644 | O6: =NW!H12 -> 430.848 | P6: =NW!I12 -> 477.972 | Q6: =NW!J12 -> 457.164 | R6: =NW!K12 -> 585.684 | S6: =NW!L12 -> 564.264 | T6: =NW!M12 -> 500.616
A7: 1 | B7: 01 | C7: 2019 | D7: 1 | E7: Kosten | F7: Variable Kosten | G7: Fertigmachen | H7: 1 | I7: =NW!B13 -> 786.42 | J7: =NW!C13 -> 730.32 | K7: =NW!D13 -> 911.88 | L7: =NW!E13 -> 694.62 | M7: =NW!F13 -> 991.44 | N7: =NW!G13 -> 1057.74 | O7: =NW!H13 -> 718.08 | P7: =NW!I13 -> 796.62 | Q7: =NW!J13 -> 761.94 | R7: =NW!K13 -> 976.14 | S7: =NW!L13 -> 940.44 | T7: =NW!M13 -> 834.36
A8: 1 | B8: 01 | C8: 2019 | D8: 1 | E8: Kosten | F8: Variable Kosten | G8: Kulanz | H8: 1 | I8: =NW!B14 -> 104.856 | J8: =NW!C14 -> 97.376 | K8: =NW!D14 -> 121.584 | L8: =NW!E14 -> 92.616 | M8: =NW!F14 -> 132.192 | N8: =NW!G14 -> 141.032 | O8: =NW!H14 -> 95.744 | P8: =NW!I14 -> 106.216 | Q8: =NW!J14 -> 101.592 | R8: =NW!K14 -> 130.152 | S8: =NW!L14 -> 125.392 | T8: =NW!M14 -> 111.248
A9: 1 | B9: 01 | C9: 2019 | D9: 1 | E9: Kosten | F9: Variable Kosten | G9: sonst. variable Kosten | H9: 1 | I9: =NW!B15 -> 0 | J9: =NW!C15 -> 0 | K9: =NW!D15 -> 0 | L9: =NW!E15 -> 0 | M9: =NW!F15 -> 0 | N9: =NW!G15 -> 0 | O9: =NW!H15 -> 0 | P9: =NW!I15 -> 0 | Q9: =NW!J15 -> 0 | R9: =NW!K15 -> 0 | S9: =NW!L15 -> 0 | T9: =NW!M15 -> 0
A10: 1 | B10: 01 | C10: 2019 | D10: 1 | E10: Kosten | F10: Direkte Kosten | G10: Personalkosten | H10: 1 | I10: =NW!B18 -> 5400 | J10: =NW!C18 -> 5400 | K10: =NW!D18 -> 5400 | L10: =NW!E18 -> 5400 | M10: =NW!F18 -> 5400 | N10: =NW!G18 -> 5400 | O10: =NW!H18 -> 5400 | P10: =NW!I18 -> 5400 | Q10: =NW!J18 -> 5400 | R10: =NW!K18 -> 5400 | S10: =NW!L18 -> 5400 | T10: =NW!M18 -> 5400
A11: 1 | B11: 01 | C11: 2019 | D11: 1 | E11: Kosten | F11: Direkte Kosten | G11: Werbekosten | H11: 1 | I11: =NW!B19 -> 3333.333333 | J11: =NW!C19 -> 3333.333333 | K11: =NW!D19 -> 3333.333333 | L11: =NW!E19 -> 3333.333333 | M11: =NW!F19 -> 3333.333333 | N11: =NW!G19 -> 3333.333333 | O11: =NW!H19 -> 3333.333333 | P11: =NW!I19 -> 3333.333333 | Q11: =NW!J19 -> 3333.333333 | R11: =NW!K19 -> 3333.333333 | S11: =NW!L19 -> 3333.333333 | T11: =NW!M19 -> 3333.333333
A12: 1 | B12: 01 | C12: 2019 | D12: 1 | E12: Kosten | F12: Direkte Kosten | G12: Fahrzeugkosten | H12: 1 | I12: =NW!B20 -> 3333.333333 | J12: =NW!C20 -> 3333.333333 | K12: =NW!D20 -> 3333.333333 | L12: =NW!E20 -> 3333.333333 | M12: =NW!F20 -> 3333.333333 | N12: =NW!G20 -> 3333.333333 | O12: =NW!H20 -> 3333.333333 | P12: =NW!I20 -> 3333.333333 | Q12: =NW!J20 -> 3333.333333 | R12: =NW!K20 -> 3333.333333 | S12: =NW!L20 -> 3333.333333 | T12: =NW!M20 -> 3333.333333
A13: 1 | B13: 01 | C13: 2019 | D13: 1 | E13: Kosten | F13: Direkte Kosten | G13: Abschreibungen | H13: 1 | I13: =NW!B21 -> 10000 | J13: =NW!C21 -> 10000 | K13: =NW!D21 -> 10000 | L13: =NW!E21 -> 10000 | M13: =NW!F21 -> 10000 | N13: =NW!G21 -> 10000 | O13: =NW!H21 -> 10000 | P13: =NW!I21 -> 10000 | Q13: =NW!J21 -> 10000 | R13: =NW!K21 -> 10000 | S13: =NW!L21 -> 10000 | T13: =NW!M21 -> 10000
A14: 1 | B14: 01 | C14: 2019 | D14: 1 | E14: Kosten | F14: Direkte Kosten | G14: Gemeinkosten | H14: 1 | I14: =NW!B22 -> 1666.666667 | J14: =NW!C22 -> 1666.666667 | K14: =NW!D22 -> 1666.666667 | L14: =NW!E22 -> 1666.666667 | M14: =NW!F22 -> 1666.666667 | N14: =NW!G22 -> 1666.666667 | O14: =NW!H22 -> 1666.666667 | P14: =NW!I22 -> 1666.666667 | Q14: =NW!J22 -> 1666.666667 | R14: =NW!K22 -> 1666.666667 | S14: =NW!L22 -> 1666.666667 | T14: =NW!M22 -> 1666.666667
A15: 1 | B15: 01 | C15: 2019 | D15: 2 | E15: verkaufte Stückzahlen | F15: VE Gebrauchtwagen | H15: 1 | I15: =GW!B3 -> 30.552 | J15: =GW!C3 -> 27.702 | K15: =GW!D3 -> 48.488 | L15: =GW!E3 -> 32.87 | M15: =GW!F3 -> 38.038 | N15: =GW!G3 -> 33.098 | O15: =GW!H3 -> 33.858 | P15: =GW!I3 -> 34.77 | Q15: =GW!J3 -> 21.47 | R15: =GW!K3 -> 29.184 | S15: =GW!L3 -> 24.7 | T15: =GW!M3 -> 25.27
A16: 1 | B16: 01 | C16: 2019 | D16: 2 | E16: Umsatzerlöse | F16: VE Gebrauchtwagen | H16: 1 | I16: =GW!B4*-1 -> -229140 | J16: =GW!C4*-1 -> -207765 | K16: =GW!D4*-1 -> -363660 | L16: =GW!E4*-1 -> -246525 | M16: =GW!F4*-1 -> -285285 | N16: =GW!G4*-1 -> -248235 | O16: =GW!H4*-1 -> -253935 | P16: =GW!I4*-1 -> -260775 | Q16: =GW!J4*-1 -> -161025 | R16: =GW!K4*-1 -> -218880 | S16: =GW!L4*-1 -> -185250 | T16: =GW!M4*-1 -> -189525
A17: 1 | B17: 01 | C17: 2019 | D17: 2 | E17: Einsatzwerte | F17: EW Gebrauchtwagen | H17: 1 | I17: =GW!B6 -> 211954.5 | J17: =GW!C6 -> 192182.625 | K17: =GW!D6 -> 336385.5 | L17: =GW!E6 -> 228035.625 | M17: =GW!F6 -> 263888.625 | N17: =GW!G6 -> 229617.375 | O17: =GW!H6 -> 234889.875 | P17: =GW!I6 -> 241216.875 | Q17: =GW!J6 -> 148948.125 | R17: =GW!K6 -> 202464 | S17: =GW!L6 -> 171356.25 | T17: =GW!M6 -> 175310.625
A18: 1 | B18: 01 | C18: 2019 | D18: 2 | E18: Kosten | F18: Variable Kosten | G18: Fixum/Prov./Soz. | H18: 1 | I18: =GW!B11 -> 7292.7624 | J18: =GW!C11 -> 6612.4674 | K18: =GW!D11 -> 11574.0856 | L18: =GW!E11 -> 7846.069 | M18: =GW!F11 -> 9079.6706 | N18: =GW!G11 -> 7900.4926 | O18: =GW!H11 -> 8081.9046 | P18: =GW!I11 -> 8299.599 | Q18: =GW!J11 -> 5124.889 | R18: =GW!K11 -> 6966.2208 | S18: =GW!L11 -> 5895.89 | T18: =GW!M11 -> 6031.949
A19: 1 | B19: 01 | C19: 2019 | D19: 2 | E19: Kosten | F19: Variable Kosten | G19: Provisionen | H19: 1 | I19: =GW!B12 -> 378.8448 | J19: =GW!C12 -> 343.5048 | K19: =GW!D12 -> 601.2512 | L19: =GW!E12 -> 407.588 | M19: =GW!F12 -> 471.6712 | N19: =GW!G12 -> 410.4152 | O19: =GW!H12 -> 419.8392 | P19: =GW!I12 -> 431.148 | Q19: =GW!J12 -> 266.228 | R19: =GW!K12 -> 361.8816 | S19: =GW!L12 -> 306.28 | T19: =GW!M12 -> 313.348
A20: 1 | B20: 01 | C20: 2019 | D20: 2 | E20: Kosten | F20: Variable Kosten | G20: Fertigmachen | H20: 1 | I20: =GW!B13 -> 1325.9568 | J20: =GW!C13 -> 1202.2668 | K20: =GW!D13 -> 2104.3792 | L20: =GW!E13 -> 1426.558 | M20: =GW!F13 -> 1650.8492 | N20: =GW!G13 -> 1436.4532 | O20: =GW!H13 -> 1469.4372 | P20: =GW!I13 -> 1509.018 | Q20: =GW!J13 -> 931.798 | R20: =GW!K13 -> 1266.5856 | S20: =GW!L13 -> 1071.98 | T20: =GW!M13 -> 1096.718
A21: 1 | B21: 01 | C21: 2019 | D21: 2 | E21: Kosten | F21: Variable Kosten | G21: Kulanz | H21: 1 | I21: =GW!B14 -> 473.556 | J21: =GW!C14 -> 429.381 | K21: =GW!D14 -> 751.564 | L21: =GW!E14 -> 509.485 | M21: =GW!F14 -> 589.589 | N21: =GW!G14 -> 513.019 | O21: =GW!H14 -> 524.799 | P21: =GW!I14 -> 538.935 | Q21: =GW!J14 -> 332.785 | R21: =GW!K14 -> 452.352 | S21: =GW!L14 -> 382.85 | T21: =GW!M14 -> 391.685
A22: 1 | B22: 01 | C22: 2019 | D22: 2 | E22: Kosten | F22: Variable Kosten | G22: sonst. variable Kosten | H22: 1 | I22: =GW!B15 -> 0 | J22: =GW!C15 -> 0 | K22: =GW!D15 -> 0 | L22: =GW!E15 -> 0 | M22: =GW!F15 -> 0 | N22: =GW!G15 -> 0 | O22: =GW!H15 -> 0 | P22: =GW!I15 -> 0 | Q22: =GW!J15 -> 0 | R22: =GW!K15 -> 0 | S22: =GW!L15 -> 0 | T22: =GW!M15 -> 0
A23: 1 | B23: 01 | C23: 2019 | D23: 2 | E23: Kosten | F23: Direkte Kosten | G23: Personalkosten | H23: 1 | I23: =GW!B18 -> 3750 | J23: =GW!C18 -> 3750 | K23: =GW!D18 -> 3750 | L23: =GW!E18 -> 3750 | M23: =GW!F18 -> 3750 | N23: =GW!G18 -> 3750 | O23: =GW!H18 -> 3750 | P23: =GW!I18 -> 3750 | Q23: =GW!J18 -> 3750 | R23: =GW!K18 -> 3750 | S23: =GW!L18 -> 3750 | T23: =GW!M18 -> 3750
A24: 1 | B24: 01 | C24: 2019 | D24: 2 | E24: Kosten | F24: Direkte Kosten | G24: Werbekosten | H24: 1 | I24: =GW!B19 -> 50 | J24: =GW!C19 -> 50 | K24: =GW!D19 -> 50 | L24: =GW!E19 -> 50 | M24: =GW!F19 -> 50 | N24: =GW!G19 -> 50 | O24: =GW!H19 -> 50 | P24: =GW!I19 -> 50 | Q24: =GW!J19 -> 50 | R24: =GW!K19 -> 50 | S24: =GW!L19 -> 50 | T24: =GW!M19 -> 50
A25: 1 | B25: 01 | C25: 2019 | D25: 2 | E25: Kosten | F25: Direkte Kosten | G25: Fahrzeugkosten | H25: 1 | I25: =GW!B20 -> 41.66666667 | J25: =GW!C20 -> 41.66666667 | K25: =GW!D20 -> 41.66666667 | L25: =GW!E20 -> 41.66666667 | M25: =GW!F20 -> 41.66666667 | N25: =GW!G20 -> 41.66666667 | O25: =GW!H20 -> 41.66666667 | P25: =GW!I20 -> 41.66666667 | Q25: =GW!J20 -> 41.66666667 | R25: =GW!K20 -> 41.66666667 | S25: =GW!L20 -> 41.66666667 | T25: =GW!M20 -> 41.66666667
A26: 1 | B26: 01 | C26: 2019 | D26: 2 | E26: Kosten | F26: Direkte Kosten | G26: Abschreibungen | H26: 1 | I26: =GW!B21 -> 0 | J26: =GW!C21 -> 0 | K26: =GW!D21 -> 0 | L26: =GW!E21 -> 0 | M26: =GW!F21 -> 0 | N26: =GW!G21 -> 0 | O26: =GW!H21 -> 0 | P26: =GW!I21 -> 0 | Q26: =GW!J21 -> 0 | R26: =GW!K21 -> 0 | S26: =GW!L21 -> 0 | T26: =GW!M21 -> 0
A27: 1 | B27: 01 | C27: 2019 | D27: 2 | E27: Kosten | F27: Direkte Kosten | G27: Gemeinkosten | H27: 1 | I27: =GW!B22 -> 1500 | J27: =GW!C22 -> 1500 | K27: =GW!D22 -> 1500 | L27: =GW!E22 -> 1500 | M27: =GW!F22 -> 1500 | N27: =GW!G22 -> 1500 | O27: =GW!H22 -> 1500 | P27: =GW!I22 -> 1500 | Q27: =GW!J22 -> 1500 | R27: =GW!K22 -> 1500 | S27: =GW!L22 -> 1500 | T27: =GW!M22 -> 1500
A28: 1 | B28: 01 | C28: 2019 | D28: 3 | E28: verkaufte Stückzahlen | F28: VE Service | G28: VE Mechanik | H28: 1 | I28: =ME!B3 -> 790.6 | J28: =ME!C3 -> 872.34 | K28: =ME!D3 -> 1189.92 | L28: =ME!E3 -> 1494.1 | M28: =ME!F3 -> 1231.46 | N28: =ME!G3 -> 1187.24 | O28: =ME!H3 -> 960.78 | P28: =ME!I3 -> 1055.92 | Q28: =ME!J3 -> 950.06 | R28: =ME!K3 -> 1321.24 | S28: =ME!L3 -> 1445.86 | T28: =ME!M3 -> 903.16
A29: 1 | B29: 01 | C29: 2019 | D29: 3 | E29: Umsatzerlöse | F29: VE Service | G29: VE Mechanik | H29: 1 | I29: =ME!B4*-1 -> -57318.5 | J29: =ME!C4*-1 -> -63244.65 | K29: =ME!D4*-1 -> -86269.2 | L29: =ME!E4*-1 -> -108322.25 | M29: =ME!F4*-1 -> -89280.85 | N29: =ME!G4*-1 -> -86074.9 | O29: =ME!H4*-1 -> -69656.55 | P29: =ME!I4*-1 -> -76554.2 | Q29: =ME!J4*-1 -> -68879.35 | R29: =ME!K4*-1 -> -95789.9 | S29: =ME!L4*-1 -> -104824.85 | T29: =ME!M4*-1 -> -65479.1
A30: 1 | B30: 01 | C30: 2019 | D30: 3 | E30: Einsatzwerte | F30: EW Service | G30: EW Mechanik | H30: 1 | I30: =ME!B6 -> 12610.07 | J30: =ME!C6 -> 13913.823 | K30: =ME!D6 -> 18979.224 | L30: =ME!E6 -> 23830.895 | M30: =ME!F6 -> 19641.787 | N30: =ME!G6 -> 18936.478 | O30: =ME!H6 -> 15324.441 | P30: =ME!I6 -> 16841.924 | Q30: =ME!J6 -> 15153.457 | R30: =ME!K6 -> 21073.778 | S30: =ME!L6 -> 23061.467 | T30: =ME!M6 -> 14405.402
A31: 1 | B31: 01 | C31: 2019 | D31: 3 | E31: Kosten | F31: Variable Kosten | G31: Fixum/Prov./Soz. | H31: 1 | I31: =ME!B11 -> 0 | J31: =ME!C11 -> 0 | K31: =ME!D11 -> 0 | L31: =ME!E11 -> 0 | M31: =ME!F11 -> 0 | N31: =ME!G11 -> 0 | O31: =ME!H11 -> 0 | P31: =ME!I11 -> 0 | Q31: =ME!J11 -> 0 | R31: =ME!K11 -> 0 | S31: =ME!L11 -> 0 | T31: =ME!M11 -> 0
A32: 1 | B32: 01 | C32: 2019 | D32: 3 | E32: Kosten | F32: Variable Kosten | G32: Provisionen | H32: 1 | I32: =ME!B12 -> 0 | J32: =ME!C12 -> 0 | K32: =ME!D12 -> 0 | L32: =ME!E12 -> 0 | M32: =ME!F12 -> 0 | N32: =ME!G12 -> 0 | O32: =ME!H12 -> 0 | P32: =ME!I12 -> 0 | Q32: =ME!J12 -> 0 | R32: =ME!K12 -> 0 | S32: =ME!L12 -> 0 | T32: =ME!M12 -> 0
A33: 1 | B33: 01 | C33: 2019 | D33: 3 | E33: Kosten | F33: Variable Kosten | G33: Fertigmachen | H33: 1 | I33: =ME!B13 -> 0 | J33: =ME!C13 -> 0 | K33: =ME!D13 -> 0 | L33: =ME!E13 -> 0 | M33: =ME!F13 -> 0 | N33: =ME!G13 -> 0 | O33: =ME!H13 -> 0 | P33: =ME!I13 -> 0 | Q33: =ME!J13 -> 0 | R33: =ME!K13 -> 0 | S33: =ME!L13 -> 0 | T33: =ME!M13 -> 0
A34: 1 | B34: 01 | C34: 2019 | D34: 3 | E34: Kosten | F34: Variable Kosten | G34: Kulanz | H34: 1 | I34: =ME!B14 -> 1180 | J34: =ME!C14 -> 1302 | K34: =ME!D14 -> 1776 | L34: =ME!E14 -> 2230 | M34: =ME!F14 -> 1838 | N34: =ME!G14 -> 1772 | O34: =ME!H14 -> 1434 | P34: =ME!I14 -> 1576 | Q34: =ME!J14 -> 1418 | R34: =ME!K14 -> 1972 | S34: =ME!L14 -> 2158 | T34: =ME!M14 -> 1348
A35: 1 | B35: 01 | C35: 2019 | D35: 3 | E35: Kosten | F35: Variable Kosten | G35: sonst. variable Kosten | H35: 1 | I35: =ME!B15 -> 0 | J35: =ME!C15 -> 0 | K35: =ME!D15 -> 0 | L35: =ME!E15 -> 0 | M35: =ME!F15 -> 0 | N35: =ME!G15 -> 0 | O35: =ME!H15 -> 0 | P35: =ME!I15 -> 0 | Q35: =ME!J15 -> 0 | R35: =ME!K15 -> 0 | S35: =ME!L15 -> 0 | T35: =ME!M15 -> 0
A36: 1 | B36: 01 | C36: 2019 | D36: 3 | E36: Kosten | F36: Direkte Kosten | G36: Personalkosten | H36: 1 | I36: =ME!B18 -> 35275 | J36: =ME!C18 -> 35275 | K36: =ME!D18 -> 35275 | L36: =ME!E18 -> 35275 | M36: =ME!F18 -> 35275 | N36: =ME!G18 -> 35275 | O36: =ME!H18 -> 35275 | P36: =ME!I18 -> 35275 | Q36: =ME!J18 -> 35275 | R36: =ME!K18 -> 35275 | S36: =ME!L18 -> 35275 | T36: =ME!M18 -> 35275
A37: 1 | B37: 01 | C37: 2019 | D37: 3 | E37: Kosten | F37: Direkte Kosten | G37: Werbekosten | H37: 1 | I37: =ME!B19 -> 425 | J37: =ME!C19 -> 425 | K37: =ME!D19 -> 425 | L37: =ME!E19 -> 425 | M37: =ME!F19 -> 425 | N37: =ME!G19 -> 425 | O37: =ME!H19 -> 425 | P37: =ME!I19 -> 425 | Q37: =ME!J19 -> 425 | R37: =ME!K19 -> 425 | S37: =ME!L19 -> 425 | T37: =ME!M19 -> 425
A38: 1 | B38: 01 | C38: 2019 | D38: 3 | E38: Kosten | F38: Direkte Kosten | G38: Fahrzeugkosten | H38: 1 | I38: =ME!B20 -> 850 | J38: =ME!C20 -> 850 | K38: =ME!D20 -> 850 | L38: =ME!E20 -> 850 | M38: =ME!F20 -> 850 | N38: =ME!G20 -> 850 | O38: =ME!H20 -> 850 | P38: =ME!I20 -> 850 | Q38: =ME!J20 -> 850 | R38: =ME!K20 -> 850 | S38: =ME!L20 -> 850 | T38: =ME!M20 -> 850
A39: 1 | B39: 01 | C39: 2019 | D39: 3 | E39: Kosten | F39: Direkte Kosten | G39: Abschreibungen | H39: 1 | I39: =ME!B21 -> 0 | J39: =ME!C21 -> 0 | K39: =ME!D21 -> 0 | L39: =ME!E21 -> 0 | M39: =ME!F21 -> 0 | N39: =ME!G21 -> 0 | O39: =ME!H21 -> 0 | P39: =ME!I21 -> 0 | Q39: =ME!J21 -> 0 | R39: =ME!K21 -> 0 | S39: =ME!L21 -> 0 | T39: =ME!M21 -> 0
A40: 1 | B40: 01 | C40: 2019 | D40: 3 | E40: Kosten | F40: Direkte Kosten | G40: Gemeinkosten | H40: 1 | I40: =ME!B22 -> 5950 | J40: =ME!C22 -> 5950 | K40: =ME!D22 -> 5950 | L40: =ME!E22 -> 5950 | M40: =ME!F22 -> 5950 | N40: =ME!G22 -> 5950 | O40: =ME!H22 -> 5950 | P40: =ME!I22 -> 5950 | Q40: =ME!J22 -> 5950 | R40: =ME!K22 -> 5950 | S40: =ME!L22 -> 5950 | T40: =ME!M22 -> 5950
A41: 1 | B41: 01 | C41: 2019 | D41: 4 | E41: verkaufte Stückzahlen | F41: VE Service | G41: VE Karosserie | H41: 1 | I41: =KA!B3 -> 204.7 | J41: =KA!C3 -> 152.03 | K41: =KA!D3 -> 179.63 | L41: =KA!E3 -> 163.07 | M41: =KA!F3 -> 176.18 | N41: =KA!G3 -> 152.03 | O41: =KA!H3 -> 187.22 | P41: =KA!I3 -> 260.82 | Q41: =KA!J3 -> 259.44 | R41: =KA!K3 -> 206.77 | S41: =KA!L3 -> 157.09 | T41: =KA!M3 -> 201.02
A42: 1 | B42: 01 | C42: 2019 | D42: 4 | E42: Umsatzerlöse | F42: VE Service | G42: VE Karosserie | H42: 1 | I42: =KA!B4*-1 -> -25178.1 | J42: =KA!C4*-1 -> -18699.69 | K42: =KA!D4*-1 -> -22094.49 | L42: =KA!E4*-1 -> -20057.61 | M42: =KA!F4*-1 -> -21670.14 | N42: =KA!G4*-1 -> -18699.69 | O42: =KA!H4*-1 -> -23028.06 | P42: =KA!I4*-1 -> -32080.86 | Q42: =KA!J4*-1 -> -31911.12 | R42: =KA!K4*-1 -> -25432.71 | S42: =KA!L4*-1 -> -19322.07 | T42: =KA!M4*-1 -> -24725.46
A43: 1 | B43: 01 | C43: 2019 | D43: 4 | E43: Einsatzwerte | F43: EW Service | G43: EW Karosserie | H43: 1 | I43: =KA!B6 -> 5539.182 | J43: =KA!C6 -> 4113.9318 | K43: =KA!D6 -> 4860.7878 | L43: =KA!E6 -> 4412.6742 | M43: =KA!F6 -> 4767.4308 | N43: =KA!G6 -> 4113.9318 | O43: =KA!H6 -> 5066.1732 | P43: =KA!I6 -> 7057.7892 | Q43: =KA!J6 -> 7020.4464 | R43: =KA!K6 -> 5595.1962 | S43: =KA!L6 -> 4250.8554 | T43: =KA!M6 -> 5439.6012
A44: 1 | B44: 01 | C44: 2019 | D44: 4 | E44: Kosten | F44: Variable Kosten | G44: Fixum/Prov./Soz. | H44: 1 | I44: =KA!B11 -> 0 | J44: =KA!C11 -> 0 | K44: =KA!D11 -> 0 | L44: =KA!E11 -> 0 | M44: =KA!F11 -> 0 | N44: =KA!G11 -> 0 | O44: =KA!H11 -> 0 | P44: =KA!I11 -> 0 | Q44: =KA!J11 -> 0 | R44: =KA!K11 -> 0 | S44: =KA!L11 -> 0 | T44: =KA!M11 -> 0
A45: 1 | B45: 01 | C45: 2019 | D45: 4 | E45: Kosten | F45: Variable Kosten | G45: Provisionen | H45: 1 | I45: =KA!B12 -> 0 | J45: =KA!C12 -> 0 | K45: =KA!D12 -> 0 | L45: =KA!E12 -> 0 | M45: =KA!F12 -> 0 | N45: =KA!G12 -> 0 | O45: =KA!H12 -> 0 | P45: =KA!I12 -> 0 | Q45: =KA!J12 -> 0 | R45: =KA!K12 -> 0 | S45: =KA!L12 -> 0 | T45: =KA!M12 -> 0
A46: 1 | B46: 01 | C46: 2019 | D46: 4 | E46: Kosten | F46: Variable Kosten | G46: Fertigmachen | H46: 1 | I46: =KA!B13 -> 0 | J46: =KA!C13 -> 0 | K46: =KA!D13 -> 0 | L46: =KA!E13 -> 0 | M46: =KA!F13 -> 0 | N46: =KA!G13 -> 0 | O46: =KA!H13 -> 0 | P46: =KA!I13 -> 0 | Q46: =KA!J13 -> 0 | R46: =KA!K13 -> 0 | S46: =KA!L13 -> 0 | T46: =KA!M13 -> 0
A47: 1 | B47: 01 | C47: 2019 | D47: 4 | E47: Kosten | F47: Variable Kosten | G47: Kulanz | H47: 1 | I47: =KA!B14 -> 178 | J47: =KA!C14 -> 132.2 | K47: =KA!D14 -> 156.2 | L47: =KA!E14 -> 141.8 | M47: =KA!F14 -> 153.2 | N47: =KA!G14 -> 132.2 | O47: =KA!H14 -> 162.8 | P47: =KA!I14 -> 226.8 | Q47: =KA!J14 -> 225.6 | R47: =KA!K14 -> 179.8 | S47: =KA!L14 -> 136.6 | T47: =KA!M14 -> 174.8
A48: 1 | B48: 01 | C48: 2019 | D48: 4 | E48: Kosten | F48: Variable Kosten | G48: sonst. variable Kosten | H48: 1 | I48: =KA!B15 -> 0 | J48: =KA!C15 -> 0 | K48: =KA!D15 -> 0 | L48: =KA!E15 -> 0 | M48: =KA!F15 -> 0 | N48: =KA!G15 -> 0 | O48: =KA!H15 -> 0 | P48: =KA!I15 -> 0 | Q48: =KA!J15 -> 0 | R48: =KA!K15 -> 0 | S48: =KA!L15 -> 0 | T48: =KA!M15 -> 0
A49: 1 | B49: 01 | C49: 2019 | D49: 4 | E49: Kosten | F49: Direkte Kosten | G49: Personalkosten | H49: 1 | I49: =KA!B18 -> 3553.333333 | J49: =KA!C18 -> 3553.333333 | K49: =KA!D18 -> 3553.333333 | L49: =KA!E18 -> 3553.333333 | M49: =KA!F18 -> 3553.333333 | N49: =KA!G18 -> 3553.333333 | O49: =KA!H18 -> 3553.333333 | P49: =KA!I18 -> 3553.333333 | Q49: =KA!J18 -> 3553.333333 | R49: =KA!K18 -> 3553.333333 | S49: =KA!L18 -> 3553.333333 | T49: =KA!M18 -> 3553.333333
A50: 1 | B50: 01 | C50: 2019 | D50: 4 | E50: Kosten | F50: Direkte Kosten | G50: Werbekosten | H50: 1 | I50: =KA!B19 -> 0 | J50: =KA!C19 -> 0 | K50: =KA!D19 -> 0 | L50: =KA!E19 -> 0 | M50: =KA!F19 -> 0 | N50: =KA!G19 -> 0 | O50: =KA!H19 -> 0 | P50: =KA!I19 -> 0 | Q50: =KA!J19 -> 0 | R50: =KA!K19 -> 0 | S50: =KA!L19 -> 0 | T50: =KA!M19 -> 0
A51: 1 | B51: 01 | C51: 2019 | D51: 4 | E51: Kosten | F51: Direkte Kosten | G51: Fahrzeugkosten | H51: 1 | I51: =KA!B20 -> 0 | J51: =KA!C20 -> 0 | K51: =KA!D20 -> 0 | L51: =KA!E20 -> 0 | M51: =KA!F20 -> 0 | N51: =KA!G20 -> 0 | O51: =KA!H20 -> 0 | P51: =KA!I20 -> 0 | Q51: =KA!J20 -> 0 | R51: =KA!K20 -> 0 | S51: =KA!L20 -> 0 | T51: =KA!M20 -> 0
A52: 1 | B52: 01 | C52: 2019 | D52: 4 | E52: Kosten | F52: Direkte Kosten | G52: Abschreibungen | H52: 1 | I52: =KA!B21 -> 0 | J52: =KA!C21 -> 0 | K52: =KA!D21 -> 0 | L52: =KA!E21 -> 0 | M52: =KA!F21 -> 0 | N52: =KA!G21 -> 0 | O52: =KA!H21 -> 0 | P52: =KA!I21 -> 0 | Q52: =KA!J21 -> 0 | R52: =KA!K21 -> 0 | S52: =KA!L21 -> 0 | T52: =KA!M21 -> 0
A53: 1 | B53: 01 | C53: 2019 | D53: 4 | E53: Kosten | F53: Direkte Kosten | G53: Gemeinkosten | H53: 1 | I53: =KA!B22 -> 780 | J53: =KA!C22 -> 780 | K53: =KA!D22 -> 780 | L53: =KA!E22 -> 780 | M53: =KA!F22 -> 780 | N53: =KA!G22 -> 780 | O53: =KA!H22 -> 780 | P53: =KA!I22 -> 780 | Q53: =KA!J22 -> 780 | R53: =KA!K22 -> 780 | S53: =KA!L22 -> 780 | T53: =KA!M22 -> 780
A54: 1 | B54: 01 | C54: 2019 | D54: 5 | E54: verkaufte Stückzahlen | F54: VE Service | G54: VE Lackiererei | H54: 1 | I54: =LA!B3 -> 168.3 | J54: =LA!C3 -> 161.7 | K54: =LA!D3 -> 188.1 | L54: =LA!E3 -> 164.34 | M54: =LA!F3 -> 170.94 | N54: =LA!G3 -> 190.3 | O54: =LA!H3 -> 186.56 | P54: =LA!I3 -> 207.02 | Q54: =LA!J3 -> 200.2 | R54: =LA!K3 -> 168.3 | S54: =LA!L3 -> 187.22 | T54: =LA!M3 -> 207.68
A55: 1 | B55: 01 | C55: 2019 | D55: 5 | E55: Umsatzerlöse | F55: VE Service | G55: VE Lackiererei | H55: 1 | I55: =LA!B4*-1 -> -37362.6 | J55: =LA!C4*-1 -> -35897.4 | K55: =LA!D4*-1 -> -41758.2 | L55: =LA!E4*-1 -> -36483.48 | M55: =LA!F4*-1 -> -37948.68 | N55: =LA!G4*-1 -> -42246.6 | O55: =LA!H4*-1 -> -41416.32 | P55: =LA!I4*-1 -> -45958.44 | Q55: =LA!J4*-1 -> -44444.4 | R55: =LA!K4*-1 -> -37362.6 | S55: =LA!L4*-1 -> -41562.84 | T55: =LA!M4*-1 -> -46104.96
A56: 1 | B56: 01 | C56: 2019 | D56: 5 | E56: Einsatzwerte | F56: EW Service | G56: EW Lackiererei | H56: 1 | I56: =LA!B6 -> 14197.788 | J56: =LA!C6 -> 13641.012 | K56: =LA!D6 -> 15868.116 | L56: =LA!E6 -> 13863.7224 | M56: =LA!F6 -> 14420.4984 | N56: =LA!G6 -> 16053.708 | O56: =LA!H6 -> 15738.2016 | P56: =LA!I6 -> 17464.2072 | Q56: =LA!J6 -> 16888.872 | R56: =LA!K6 -> 14197.788 | S56: =LA!L6 -> 15793.8792 | T56: =LA!M6 -> 17519.8848
A57: 1 | B57: 01 | C57: 2019 | D57: 5 | E57: Kosten | F57: Variable Kosten | G57: Fixum/Prov./Soz. | H57: 1 | I57: =LA!B11 -> 0 | J57: =LA!C11 -> 0 | K57: =LA!D11 -> 0 | L57: =LA!E11 -> 0 | M57: =LA!F11 -> 0 | N57: =LA!G11 -> 0 | O57: =LA!H11 -> 0 | P57: =LA!I11 -> 0 | Q57: =LA!J11 -> 0 | R57: =LA!K11 -> 0 | S57: =LA!L11 -> 0 | T57: =LA!M11 -> 0
A58: 1 | B58: 01 | C58: 2019 | D58: 5 | E58: Kosten | F58: Variable Kosten | G58: Provisionen | H58: 1 | I58: =LA!B12 -> 0 | J58: =LA!C12 -> 0 | K58: =LA!D12 -> 0 | L58: =LA!E12 -> 0 | M58: =LA!F12 -> 0 | N58: =LA!G12 -> 0 | O58: =LA!H12 -> 0 | P58: =LA!I12 -> 0 | Q58: =LA!J12 -> 0 | R58: =LA!K12 -> 0 | S58: =LA!L12 -> 0 | T58: =LA!M12 -> 0
A59: 1 | B59: 01 | C59: 2019 | D59: 5 | E59: Kosten | F59: Variable Kosten | G59: Fertigmachen | H59: 1 | I59: =LA!B13 -> 0 | J59: =LA!C13 -> 0 | K59: =LA!D13 -> 0 | L59: =LA!E13 -> 0 | M59: =LA!F13 -> 0 | N59: =LA!G13 -> 0 | O59: =LA!H13 -> 0 | P59: =LA!I13 -> 0 | Q59: =LA!J13 -> 0 | R59: =LA!K13 -> 0 | S59: =LA!L13 -> 0 | T59: =LA!M13 -> 0
A60: 1 | B60: 01 | C60: 2019 | D60: 5 | E60: Kosten | F60: Variable Kosten | G60: Kulanz | H60: 1 | I60: =LA!B14 -> 573.75 | J60: =LA!C14 -> 551.25 | K60: =LA!D14 -> 641.25 | L60: =LA!E14 -> 560.25 | M60: =LA!F14 -> 582.75 | N60: =LA!G14 -> 648.75 | O60: =LA!H14 -> 636 | P60: =LA!I14 -> 705.75 | Q60: =LA!J14 -> 682.5 | R60: =LA!K14 -> 573.75 | S60: =LA!L14 -> 638.25 | T60: =LA!M14 -> 708
A61: 1 | B61: 01 | C61: 2019 | D61: 5 | E61: Kosten | F61: Variable Kosten | G61: sonst. variable Kosten | H61: 1 | I61: =LA!B15 -> 0 | J61: =LA!C15 -> 0 | K61: =LA!D15 -> 0 | L61: =LA!E15 -> 0 | M61: =LA!F15 -> 0 | N61: =LA!G15 -> 0 | O61: =LA!H15 -> 0 | P61: =LA!I15 -> 0 | Q61: =LA!J15 -> 0 | R61: =LA!K15 -> 0 | S61: =LA!L15 -> 0 | T61: =LA!M15 -> 0
A62: 1 | B62: 01 | C62: 2019 | D62: 5 | E62: Kosten | F62: Direkte Kosten | G62: Personalkosten | H62: 1 | I62: =LA!B18 -> 5654.166667 | J62: =LA!C18 -> 5654.166667 | K62: =LA!D18 -> 5654.166667 | L62: =LA!E18 -> 5654.166667 | M62: =LA!F18 -> 5654.166667 | N62: =LA!G18 -> 5654.166667 | O62: =LA!H18 -> 5654.166667 | P62: =LA!I18 -> 5654.166667 | Q62: =LA!J18 -> 5654.166667 | R62: =LA!K18 -> 5654.166667 | S62: =LA!L18 -> 5654.166667 | T62: =LA!M18 -> 5654.166667
A63: 1 | B63: 01 | C63: 2019 | D63: 5 | E63: Kosten | F63: Direkte Kosten | G63: Werbekosten | H63: 1 | I63: =LA!B19 -> 0 | J63: =LA!C19 -> 0 | K63: =LA!D19 -> 0 | L63: =LA!E19 -> 0 | M63: =LA!F19 -> 0 | N63: =LA!G19 -> 0 | O63: =LA!H19 -> 0 | P63: =LA!I19 -> 0 | Q63: =LA!J19 -> 0 | R63: =LA!K19 -> 0 | S63: =LA!L19 -> 0 | T63: =LA!M19 -> 0
A64: 1 | B64: 01 | C64: 2019 | D64: 5 | E64: Kosten | F64: Direkte Kosten | G64: Fahrzeugkosten | H64: 1 | I64: =LA!B20 -> 143.75 | J64: =LA!C20 -> 143.75 | K64: =LA!D20 -> 143.75 | L64: =LA!E20 -> 143.75 | M64: =LA!F20 -> 143.75 | N64: =LA!G20 -> 143.75 | O64: =LA!H20 -> 143.75 | P64: =LA!I20 -> 143.75 | Q64: =LA!J20 -> 143.75 | R64: =LA!K20 -> 143.75 | S64: =LA!L20 -> 143.75 | T64: =LA!M20 -> 143.75
A65: 1 | B65: 01 | C65: 2019 | D65: 5 | E65: Kosten | F65: Direkte Kosten | G65: Abschreibungen | H65: 1 | I65: =LA!B21 -> 0 | J65: =LA!C21 -> 0 | K65: =LA!D21 -> 0 | L65: =LA!E21 -> 0 | M65: =LA!F21 -> 0 | N65: =LA!G21 -> 0 | O65: =LA!H21 -> 0 | P65: =LA!I21 -> 0 | Q65: =LA!J21 -> 0 | R65: =LA!K21 -> 0 | S65: =LA!L21 -> 0 | T65: =LA!M21 -> 0
A66: 1 | B66: 01 | C66: 2019 | D66: 5 | E66: Kosten | F66: Direkte Kosten | G66: Gemeinkosten | H66: 1 | I66: =LA!B22 -> 3785.416667 | J66: =LA!C22 -> 3785.416667 | K66: =LA!D22 -> 3785.416667 | L66: =LA!E22 -> 3785.416667 | M66: =LA!F22 -> 3785.416667 | N66: =LA!G22 -> 3785.416667 | O66: =LA!H22 -> 3785.416667 | P66: =LA!I22 -> 3785.416667 | Q66: =LA!J22 -> 3785.416667 | R66: =LA!K22 -> 3785.416667 | S66: =LA!L22 -> 3785.416667 | T66: =LA!M22 -> 3785.416667
A67: 1 | B67: 01 | C67: 2019 | D67: 6 | E67: Umsatzerlöse | F67: VE Teile | H67: 1 | I67: ='T&Z'!B4*-1 -> -128688.352 | J67: ='T&Z'!C4*-1 -> -120894.5504 | K67: ='T&Z'!D4*-1 -> -159459.5825 | L67: ='T&Z'!E4*-1 -> -154063.52 | M67: ='T&Z'!F4*-1 -> -152251.008 | N67: ='T&Z'!G4*-1 -> -140107.1776 | O67: ='T&Z'!H4*-1 -> -133944.6368 | P67: ='T&Z'!I4*-1 -> -153882.2688 | Q67: ='T&Z'!J4*-1 -> -133763.3856 | R67: ='T&Z'!K4*-1 -> -166569.8528 | S67: ='T&Z'!L4*-1 -> -205176.3584 | T67: ='T&Z'!M4*-1 -> -163669.8336
A68: 1 | B68: 01 | C68: 2019 | D68: 6 | E68: Einsatzwerte | F68: EW Teile | H68: 1 | I68: ='T&Z'!B5 -> 83647.4288 | J68: ='T&Z'!C5 -> 78581.45776 | K68: ='T&Z'!D5 -> 103648.7286 | L68: ='T&Z'!E5 -> 100141.288 | M68: ='T&Z'!F5 -> 98963.1552 | N68: ='T&Z'!G5 -> 91069.66544 | O68: ='T&Z'!H5 -> 87064.01392 | P68: ='T&Z'!I5 -> 100023.4747 | Q68: ='T&Z'!J5 -> 86946.20064 | R68: ='T&Z'!K5 -> 108270.4043 | S68: ='T&Z'!L5 -> 133364.633 | T68: ='T&Z'!M5 -> 106385.3918
A69: 1 | B69: 01 | C69: 2019 | D69: 6 | E69: Kosten | F69: Variable Kosten | G69: Fixum/Prov./Soz. | H69: 1 | I69: ='T&Z'!B9 -> 0 | J69: ='T&Z'!C9 -> 0 | K69: ='T&Z'!D9 -> 0 | L69: ='T&Z'!E9 -> 0 | M69: ='T&Z'!F9 -> 0 | N69: ='T&Z'!G9 -> 0 | O69: ='T&Z'!H9 -> 0 | P69: ='T&Z'!I9 -> 0 | Q69: ='T&Z'!J9 -> 0 | R69: ='T&Z'!K9 -> 0 | S69: ='T&Z'!L9 -> 0 | T69: ='T&Z'!M9 -> 0
A70: 1 | B70: 01 | C70: 2019 | D70: 6 | E70: Kosten | F70: Variable Kosten | G70: Provisionen | H70: 1 | I70: ='T&Z'!B10 -> 0 | J70: ='T&Z'!C10 -> 0 | K70: ='T&Z'!D10 -> 0 | L70: ='T&Z'!E10 -> 0 | M70: ='T&Z'!F10 -> 0 | N70: ='T&Z'!G10 -> 0 | O70: ='T&Z'!H10 -> 0 | P70: ='T&Z'!I10 -> 0 | Q70: ='T&Z'!J10 -> 0 | R70: ='T&Z'!K10 -> 0 | S70: ='T&Z'!L10 -> 0 | T70: ='T&Z'!M10 -> 0
A71: 1 | B71: 01 | C71: 2019 | D71: 6 | E71: Kosten | F71: Variable Kosten | G71: Fertigmachen | H71: 1 | I71: ='T&Z'!B11 -> 0 | J71: ='T&Z'!C11 -> 0 | K71: ='T&Z'!D11 -> 0 | L71: ='T&Z'!E11 -> 0 | M71: ='T&Z'!F11 -> 0 | N71: ='T&Z'!G11 -> 0 | O71: ='T&Z'!H11 -> 0 | P71: ='T&Z'!I11 -> 0 | Q71: ='T&Z'!J11 -> 0 | R71: ='T&Z'!K11 -> 0 | S71: ='T&Z'!L11 -> 0 | T71: ='T&Z'!M11 -> 0
A72: 1 | B72: 01 | C72: 2019 | D72: 6 | E72: Kosten | F72: Variable Kosten | G72: Kulanz | H72: 1 | I72: ='T&Z'!B12 -> 1420 | J72: ='T&Z'!C12 -> 1334 | K72: ='T&Z'!D12 -> 1759.542365 | L72: ='T&Z'!E12 -> 1700 | M72: ='T&Z'!F12 -> 1680 | N72: ='T&Z'!G12 -> 1546 | O72: ='T&Z'!H12 -> 1478 | P72: ='T&Z'!I12 -> 1698 | Q72: ='T&Z'!J12 -> 1476 | R72: ='T&Z'!K12 -> 1838 | S72: ='T&Z'!L12 -> 2264 | T72: ='T&Z'!M12 -> 1806
A73: 1 | B73: 01 | C73: 2019 | D73: 6 | E73: Kosten | F73: Variable Kosten | G73: sonst. variable Kosten | H73: 1 | I73: ='T&Z'!B13 -> 0 | J73: ='T&Z'!C13 -> 0 | K73: ='T&Z'!D13 -> 0 | L73: ='T&Z'!E13 -> 0 | M73: ='T&Z'!F13 -> 0 | N73: ='T&Z'!G13 -> 0 | O73: ='T&Z'!H13 -> 0 | P73: ='T&Z'!I13 -> 0 | Q73: ='T&Z'!J13 -> 0 | R73: ='T&Z'!K13 -> 0 | S73: ='T&Z'!L13 -> 0 | T73: ='T&Z'!M13 -> 0
A74: 1 | B74: 01 | C74: 2019 | D74: 6 | E74: Kosten | F74: Direkte Kosten | G74: Personalkosten | H74: 1 | I74: ='T&Z'!B16 -> 18848.95833 | J74: ='T&Z'!C16 -> 18848.95833 | K74: ='T&Z'!D16 -> 18848.95833 | L74: ='T&Z'!E16 -> 18848.95833 | M74: ='T&Z'!F16 -> 18848.95833 | N74: ='T&Z'!G16 -> 18848.95833 | O74: ='T&Z'!H16 -> 18848.95833 | P74: ='T&Z'!I16 -> 18848.95833 | Q74: ='T&Z'!J16 -> 18848.95833 | R74: ='T&Z'!K16 -> 18848.95833 | S74: ='T&Z'!L16 -> 18848.95833 | T74: ='T&Z'!M16 -> 18848.95833
A75: 1 | B75: 01 | C75: 2019 | D75: 6 | E75: Kosten | F75: Direkte Kosten | G75: Werbekosten | H75: 1 | I75: ='T&Z'!B17 -> 48.95833333 | J75: ='T&Z'!C17 -> 48.95833333 | K75: ='T&Z'!D17 -> 48.95833333 | L75: ='T&Z'!E17 -> 48.95833333 | M75: ='T&Z'!F17 -> 48.95833333 | N75: ='T&Z'!G17 -> 48.95833333 | O75: ='T&Z'!H17 -> 48.95833333 | P75: ='T&Z'!I17 -> 48.95833333 | Q75: ='T&Z'!J17 -> 48.95833333 | R75: ='T&Z'!K17 -> 48.95833333 | S75: ='T&Z'!L17 -> 48.95833333 | T75: ='T&Z'!M17 -> 48.95833333
A76: 1 | B76: 01 | C76: 2019 | D76: 6 | E76: Kosten | F76: Direkte Kosten | G76: Fahrzeugkosten | H76: 1 | I76: ='T&Z'!B18 -> 195.8333333 | J76: ='T&Z'!C18 -> 195.8333333 | K76: ='T&Z'!D18 -> 195.8333333 | L76: ='T&Z'!E18 -> 195.8333333 | M76: ='T&Z'!F18 -> 195.8333333 | N76: ='T&Z'!G18 -> 195.8333333 | O76: ='T&Z'!H18 -> 195.8333333 | P76: ='T&Z'!I18 -> 195.8333333 | Q76: ='T&Z'!J18 -> 195.8333333 | R76: ='T&Z'!K18 -> 195.8333333 | S76: ='T&Z'!L18 -> 195.8333333 | T76: ='T&Z'!M18 -> 195.8333333
A77: 1 | B77: 01 | C77: 2019 | D77: 6 | E77: Kosten | F77: Direkte Kosten | G77: Abschreibungen | H77: 1 | I77: ='T&Z'!B19 -> 0 | J77: ='T&Z'!C19 -> 0 | K77: ='T&Z'!D19 -> 0 | L77: ='T&Z'!E19 -> 0 | M77: ='T&Z'!F19 -> 0 | N77: ='T&Z'!G19 -> 0 | O77: ='T&Z'!H19 -> 0 | P77: ='T&Z'!I19 -> 0 | Q77: ='T&Z'!J19 -> 0 | R77: ='T&Z'!K19 -> 0 | S77: ='T&Z'!L19 -> 0 | T77: ='T&Z'!M19 -> 0
A78: 1 | B78: 01 | C78: 2019 | D78: 6 | E78: Kosten | F78: Direkte Kosten | G78: Gemeinkosten | H78: 1 | I78: ='T&Z'!B20 -> 489.5833333 | J78: ='T&Z'!C20 -> 489.5833333 | K78: ='T&Z'!D20 -> 489.5833333 | L78: ='T&Z'!E20 -> 489.5833333 | M78: ='T&Z'!F20 -> 489.5833333 | N78: ='T&Z'!G20 -> 489.5833333 | O78: ='T&Z'!H20 -> 489.5833333 | P78: ='T&Z'!I20 -> 489.5833333 | Q78: ='T&Z'!J20 -> 489.5833333 | R78: ='T&Z'!K20 -> 489.5833333 | S78: ='T&Z'!L20 -> 489.5833333 | T78: ='T&Z'!M20 -> 489.5833333
A79: 1 | B79: 01 | C79: 2019 | D79: 7 | E79: Umsatzerlöse | F79: VE Mietwagen | H79: 1 | I79: =MW!B3*-1 -> -7860 | J79: =MW!C3*-1 -> -7530 | K79: =MW!D3*-1 -> -9940 | L79: =MW!E3*-1 -> -6790 | M79: =MW!F3*-1 -> -8840 | N79: =MW!G3*-1 -> -9300 | O79: =MW!H3*-1 -> -7970 | P79: =MW!I3*-1 -> -7940 | Q79: =MW!J3*-1 -> -7500 | R79: =MW!K3*-1 -> -7280 | S79: =MW!L3*-1 -> -8910 | T79: =MW!M3*-1 -> -10140
A80: 1 | B80: 01 | C80: 2019 | D80: 7 | E80: Einsatzwerte | F80: EW Mietwagen | H80: 1 | I80: =MW!B4 -> 0 | J80: =MW!C4 -> 0 | K80: =MW!D4 -> 0 | L80: =MW!E4 -> 0 | M80: =MW!F4 -> 0 | N80: =MW!G4 -> 0 | O80: =MW!H4 -> 0 | P80: =MW!I4 -> 0 | Q80: =MW!J4 -> 0 | R80: =MW!K4 -> 0 | S80: =MW!L4 -> 0 | T80: =MW!M4 -> 0
A81: 1 | B81: 01 | C81: 2019 | D81: 7 | E81: Kosten | F81: Variable Kosten | G81: Fixum/Prov./Soz. | H81: 1 | I81: =MW!B8 -> 0 | J81: =MW!C8 -> 0 | K81: =MW!D8 -> 0 | L81: =MW!E8 -> 0 | M81: =MW!F8 -> 0 | N81: =MW!G8 -> 0 | O81: =MW!H8 -> 0 | P81: =MW!I8 -> 0 | Q81: =MW!J8 -> 0 | R81: =MW!K8 -> 0 | S81: =MW!L8 -> 0 | T81: =MW!M8 -> 0
A82: 1 | B82: 01 | C82: 2019 | D82: 7 | E82: Kosten | F82: Variable Kosten | G82: Provisionen | H82: 1 | I82: =MW!B9 -> 0 | J82: =MW!C9 -> 0 | K82: =MW!D9 -> 0 | L82: =MW!E9 -> 0 | M82: =MW!F9 -> 0 | N82: =MW!G9 -> 0 | O82: =MW!H9 -> 0 | P82: =MW!I9 -> 0 | Q82: =MW!J9 -> 0 | R82: =MW!K9 -> 0 | S82: =MW!L9 -> 0 | T82: =MW!M9 -> 0
A83: 1 | B83: 01 | C83: 2019 | D83: 7 | E83: Kosten | F83: Variable Kosten | G83: Fertigmachen | H83: 1 | I83: =MW!B10 -> 0 | J83: =MW!C10 -> 0 | K83: =MW!D10 -> 0 | L83: =MW!E10 -> 0 | M83: =MW!F10 -> 0 | N83: =MW!G10 -> 0 | O83: =MW!H10 -> 0 | P83: =MW!I10 -> 0 | Q83: =MW!J10 -> 0 | R83: =MW!K10 -> 0 | S83: =MW!L10 -> 0 | T83: =MW!M10 -> 0
A84: 1 | B84: 01 | C84: 2019 | D84: 7 | E84: Kosten | F84: Variable Kosten | G84: Kulanz | H84: 1 | I84: =MW!B11 -> 0 | J84: =MW!C11 -> 0 | K84: =MW!D11 -> 0 | L84: =MW!E11 -> 0 | M84: =MW!F11 -> 0 | N84: =MW!G11 -> 0 | O84: =MW!H11 -> 0 | P84: =MW!I11 -> 0 | Q84: =MW!J11 -> 0 | R84: =MW!K11 -> 0 | S84: =MW!L11 -> 0 | T84: =MW!M11 -> 0
A85: 1 | B85: 01 | C85: 2019 | D85: 7 | E85: Kosten | F85: Variable Kosten | G85: sonst. variable Kosten | H85: 1 | I85: =MW!B12 -> 0 | J85: =MW!C12 -> 0 | K85: =MW!D12 -> 0 | L85: =MW!E12 -> 0 | M85: =MW!F12 -> 0 | N85: =MW!G12 -> 0 | O85: =MW!H12 -> 0 | P85: =MW!I12 -> 0 | Q85: =MW!J12 -> 0 | R85: =MW!K12 -> 0 | S85: =MW!L12 -> 0 | T85: =MW!M12 -> 0
A86: 1 | B86: 01 | C86: 2019 | D86: 7 | E86: Kosten | F86: Direkte Kosten | G86: Personalkosten | H86: 1 | I86: =MW!B15 -> 243.3333333 | J86: =MW!C15 -> 243.3333333 | K86: =MW!D15 -> 243.3333333 | L86: =MW!E15 -> 243.3333333 | M86: =MW!F15 -> 243.3333333 | N86: =MW!G15 -> 243.3333333 | O86: =MW!H15 -> 243.3333333 | P86: =MW!I15 -> 243.3333333 | Q86: =MW!J15 -> 243.3333333 | R86: =MW!K15 -> 243.3333333 | S86: =MW!L15 -> 243.3333333 | T86: =MW!M15 -> 243.3333333
A87: 1 | B87: 01 | C87: 2019 | D87: 7 | E87: Kosten | F87: Direkte Kosten | G87: Werbekosten | H87: 1 | I87: =MW!B16 -> 6.083333333 | J87: =MW!C16 -> 6.083333333 | K87: =MW!D16 -> 6.083333333 | L87: =MW!E16 -> 6.083333333 | M87: =MW!F16 -> 6.083333333 | N87: =MW!G16 -> 6.083333333 | O87: =MW!H16 -> 6.083333333 | P87: =MW!I16 -> 6.083333333 | Q87: =MW!J16 -> 6.083333333 | R87: =MW!K16 -> 6.083333333 | S87: =MW!L16 -> 6.083333333 | T87: =MW!M16 -> 6.083333333
A88: 1 | B88: 01 | C88: 2019 | D88: 7 | E88: Kosten | F88: Direkte Kosten | G88: Fahrzeugkosten | H88: 1 | I88: =MW!B17 -> 1825 | J88: =MW!C17 -> 1825 | K88: =MW!D17 -> 1825 | L88: =MW!E17 -> 1825 | M88: =MW!F17 -> 1825 | N88: =MW!G17 -> 1825 | O88: =MW!H17 -> 1825 | P88: =MW!I17 -> 1825 | Q88: =MW!J17 -> 1825 | R88: =MW!K17 -> 1825 | S88: =MW!L17 -> 1825 | T88: =MW!M17 -> 1825
A89: 1 | B89: 01 | C89: 2019 | D89: 7 | E89: Kosten | F89: Direkte Kosten | G89: Abschreibungen | H89: 1 | I89: =MW!B18 -> 3887.25 | J89: =MW!C18 -> 3887.25 | K89: =MW!D18 -> 3887.25 | L89: =MW!E18 -> 3887.25 | M89: =MW!F18 -> 3887.25 | N89: =MW!G18 -> 3887.25 | O89: =MW!H18 -> 3887.25 | P89: =MW!I18 -> 3887.25 | Q89: =MW!J18 -> 3887.25 | R89: =MW!K18 -> 3887.25 | S89: =MW!L18 -> 3887.25 | T89: =MW!M18 -> 3887.25
A90: 1 | B90: 01 | C90: 2019 | D90: 7 | E90: Kosten | F90: Direkte Kosten | G90: Gemeinkosten | H90: 1 | I90: =MW!B19 -> 0 | J90: =MW!C19 -> 0 | K90: =MW!D19 -> 0 | L90: =MW!E19 -> 0 | M90: =MW!F19 -> 0 | N90: =MW!G19 -> 0 | O90: =MW!H19 -> 0 | P90: =MW!I19 -> 0 | Q90: =MW!J19 -> 0 | R90: =MW!K19 -> 0 | S90: =MW!L19 -> 0 | T90: =MW!M19 -> 0
A91: 1 | B91: 01 | C91: 2019 | D91: 0 | E91: Kosten | F91: Indirekte Kosten | G91: Personalkosten | H91: 1 | I91: ='C&S'!B25 -> 21250 | J91: ='C&S'!C25 -> 21250 | K91: ='C&S'!D25 -> 21250 | L91: ='C&S'!E25 -> 21250 | M91: ='C&S'!F25 -> 21250 | N91: ='C&S'!G25 -> 21250 | O91: ='C&S'!H25 -> 21250 | P91: ='C&S'!I25 -> 21250 | Q91: ='C&S'!J25 -> 21250 | R91: ='C&S'!K25 -> 21250 | S91: ='C&S'!L25 -> 21250 | T91: ='C&S'!M25 -> 21250
A92: 1 | B92: 01 | C92: 2019 | D92: 0 | E92: Kosten | F92: Indirekte Kosten | G92: Werbekosten | H92: 1 | I92: ='C&S'!B26 -> 1000 | J92: ='C&S'!C26 -> 1000 | K92: ='C&S'!D26 -> 1000 | L92: ='C&S'!E26 -> 1000 | M92: ='C&S'!F26 -> 1000 | N92: ='C&S'!G26 -> 1000 | O92: ='C&S'!H26 -> 1000 | P92: ='C&S'!I26 -> 1000 | Q92: ='C&S'!J26 -> 1000 | R92: ='C&S'!K26 -> 1000 | S92: ='C&S'!L26 -> 1000 | T92: ='C&S'!M26 -> 1000
A93: 1 | B93: 01 | C93: 2019 | D93: 0 | E93: Kosten | F93: Indirekte Kosten | G93: Fahrzeugkosten | H93: 1 | I93: ='C&S'!B27 -> 1000 | J93: ='C&S'!C27 -> 1000 | K93: ='C&S'!D27 -> 1000 | L93: ='C&S'!E27 -> 1000 | M93: ='C&S'!F27 -> 1000 | N93: ='C&S'!G27 -> 1000 | O93: ='C&S'!H27 -> 1000 | P93: ='C&S'!I27 -> 1000 | Q93: ='C&S'!J27 -> 1000 | R93: ='C&S'!K27 -> 1000 | S93: ='C&S'!L27 -> 1000 | T93: ='C&S'!M27 -> 1000
A94: 1 | B94: 01 | C94: 2019 | D94: 0 | E94: Kosten | F94: Indirekte Kosten | G94: Abschreibungen | H94: 1 | I94: ='C&S'!B28 -> 10000 | J94: ='C&S'!C28 -> 10000 | K94: ='C&S'!D28 -> 10000 | L94: ='C&S'!E28 -> 10000 | M94: ='C&S'!F28 -> 10000 | N94: ='C&S'!G28 -> 10000 | O94: ='C&S'!H28 -> 10000 | P94: ='C&S'!I28 -> 10000 | Q94: ='C&S'!J28 -> 10000 | R94: ='C&S'!K28 -> 10000 | S94: ='C&S'!L28 -> 10000 | T94: ='C&S'!M28 -> 10000
A95: 1 | B95: 01 | C95: 2019 | D95: 0 | E95: Kosten | F95: Indirekte Kosten | G95: Gemeinkosten | H95: 1 | I95: ='C&S'!B29 -> 30000 | J95: ='C&S'!C29 -> 30000 | K95: ='C&S'!D29 -> 30000 | L95: ='C&S'!E29 -> 30000 | M95: ='C&S'!F29 -> 30000 | N95: ='C&S'!G29 -> 30000 | O95: ='C&S'!H29 -> 30000 | P95: ='C&S'!I29 -> 30000 | Q95: ='C&S'!J29 -> 30000 | R95: ='C&S'!K29 -> 30000 | S95: ='C&S'!L29 -> 30000 | T95: ='C&S'!M29 -> 30000
A96: 1 | B96: 01 | C96: 2019 | D96: 0 | E96: Kosten | F96: Indirekte Kosten | G96: Raumkosten | H96: 1 | I96: ='C&S'!B30 -> 16742.75 | J96: ='C&S'!C30 -> 16742.75 | K96: ='C&S'!D30 -> 16742.75 | L96: ='C&S'!E30 -> 16742.75 | M96: ='C&S'!F30 -> 16742.75 | N96: ='C&S'!G30 -> 16742.75 | O96: ='C&S'!H30 -> 16742.75 | P96: ='C&S'!I30 -> 16742.75 | Q96: ='C&S'!J30 -> 16742.75 | R96: ='C&S'!K30 -> 16742.75 | S96: ='C&S'!L30 -> 16742.75 | T96: ='C&S'!M30 -> 16742.75
A97: 1 | B97: 01 | C97: 2019 | D97: 0 | E97: Kosten | F97: Indirekte Kosten | G97: Kalk. Kosten | H97: 1 | I97: ='C&S'!B31 -> 3000 | J97: ='C&S'!C31 -> 3000 | K97: ='C&S'!D31 -> 3000 | L97: ='C&S'!E31 -> 3000 | M97: ='C&S'!F31 -> 3000 | N97: ='C&S'!G31 -> 3000 | O97: ='C&S'!H31 -> 3000 | P97: ='C&S'!I31 -> 3000 | Q97: ='C&S'!J31 -> 3000 | R97: ='C&S'!K31 -> 3000 | S97: ='C&S'!L31 -> 3000 | T97: ='C&S'!M31 -> 3000
A98: 1 | B98: 01 | C98: 2019 | D98: 0 | E98: Neutrales Ergebnis | F98: Neutraler Ertrag | H98: 1 | I98: ='C&S'!B34*-1 -> 6416.666667 | J98: ='C&S'!C34*-1 -> 6416.666667 | K98: ='C&S'!D34*-1 -> 6416.666667 | L98: ='C&S'!E34*-1 -> 6416.666667 | M98: ='C&S'!F34*-1 -> 6416.666667 | N98: ='C&S'!G34*-1 -> 6416.666667 | O98: ='C&S'!H34*-1 -> 6416.666667 | P98: ='C&S'!I34*-1 -> 6416.666667 | Q98: ='C&S'!J34*-1 -> 6416.666667 | R98: ='C&S'!K34*-1 -> 6416.666667 | S98: ='C&S'!L34*-1 -> 6416.666667 | T98: ='C&S'!M34*-1 -> 6416.666667
